{"text_format":"1","workbook":"xlsx","n_sheets":41,"sheets":["Spis_treści","Tab.1.ZIB_Napływ_Inflow","Tab.2.ZIB_Napływ_Inflow_geo","Tab.3.ZIB_Napływ_Inflow_act","Tab.4.ZIB_zdrowie_cyfrowy","Tab.5.ZIB_Napływ_Inflow_M&A","Tab.6.ZIB_Stany_Position","Tab.7.ZIB_Deko_Stany_Deco_Pos","Tab.8.ZIB_Stany_UIC_IIC","Tab.9.ZIB_Stany_UIC_Act","Tab.10.ZIB_Stany_Position_geo","Tab.11.ZIB_Stany_Position_act","Tab.12.ZIB_Stan_reg_samochody","Tab.13.ZIB_Zatrudnienie_sam","Tab.14.ZIB_Stan_samochody","Tab.15.ZIB_Trans_samochody","Tab.16.ZIB_Doch_samochody","Tab.17.ZIB_Stany_Position_woj","Tab.18.ZIB_OZE_liczba_number","Tab.19.ZIB_Stany_Position_OZE","Tab.20.ZIB_Stany_position_OZE_g","Tab.21.ZIB_Napływ_Inflow_OZE","Tab.22.ZIB_Dochody_Income_OZE","Tab.23.ZIB_Dochody_Income","Tab.24.ZIB_Doch_UIC_IIC","Tab.25.ZIB_Dochody_Income_geo","Tab.26.ZIB_Dochody_Income_act","Tab.27.ZIB_Deko_Doch_Deco_Inc","Tab.28.ZIB_Stopa_dochodowości","Tab.29.ZIB_doch-op_fin_dł","Tab.30.ZIB_doch-op_findłrd","Tab.31.PIB_Odpływ_Outflow","Tab.32.PIB_Odpływ_Outflow_geo","Tab.33.PIB_Odpływ_Outflow_act","Tab.34.PIB_Stany_Position","Tab.35.PIB_Stany_Position_geo","Tab.36.PIB_Stany_Positon_act","Tab.37.PIB_Dochody_Income","Tab.38.PIB_Dochody_Income_geo","Tab.39.PIB_Dochody_Income_act","Tab.40.Stany_Position_AL_EDP"],"not_rendered":{"charts":0,"images":0,"macros":1,"external_links":0,"defined_names":3,"comments":0,"pivot_tables":0},"unopened":[],"bounds":{"document_bytes":16777216,"sheet_cells":100000,"rows_first":2000,"rows_last":500,"rows_between":2000,"halvings":0,"cell_chars":16384,"cell_head_chars":4096},"cells_cut":0,"cells_raw":0,"read":"whole","date_system":"1900"}

{"sheet":"Spis_treści","index":0,"n_rows":42,"n_cols":1,"rows_kept":42,"cut":false,"hidden":false,"merged":[]}
["Spis treści"]
[]
["Tabela 1. Transakcje z tytułu zagranicznych inwestycji bezpośrednich w Polsce w latach 2000−2020 (w mln PLN)"]
["Tabela 2. Transakcje z tytułu zagranicznych inwestycji bezpośrednich w Polsce w 2020 roku w podziale geograficznym (w mln PLN)"]
["Tabela 3. Transakcje z tytułu zagranicznych inwestycji bezpośrednich w Polsce w 2020 roku w podziale na rodzaje działalności gospodarczej (w mln PLN)"]
["Tabela 4. Stan zobowiązań z tytułu zagranicznych inwestycji bezpośrednich w Polsce w ochronę zdrowia oraz sektor cyfrowy w latach 2015–2020 (w mln PLN)"]
["Tabela 5. Transakcje z tytułu zagranicznych inwestycji bezpośrednich w Polsce z wyszczególnieniem fuzji i przejęć w Polsce w latach 2011-2020 (w mln PLN)"]
["Tabela 6. Stan zobowiązań z tytułu zagranicznych inwestycji bezpośrednich w Polsce na koniec roku w latach 2000−2020 (w mln PLN)"]
["Tabela 7. Dekompozycja zmiany stanu zobowiązań z tytułu zagranicznych inwestycji bezpośrednich w Polsce w 2020 roku na spółki giełdowe i pozostałe podmioty (w mln PLN)"]
["Tabela 8. Stan zobowiązań z tytułu zagranicznych inwestycji bezpośrednich w Polsce na koniec 2020 roku w podziale geograficznym według kraju siedziby podmiotu dominującego i kraju siedziby inwestora bezpośredniego (w mln PLN)"]
["Tabela 9. Stan zobowiązań z tytułu zagranicznych inwestycji bezpośrednich w Polsce na koniec 2020 roku w podziale geograficznym według kraju siedziby podmiotu dominującego i rodzaju działalności gospodarczej podmiotu bezpośredniego inwestowania (w mln PLN)"]
["Tabela 10. Stan zobowiązań z tytułu zagranicznych inwestycji bezpośrednich w Polsce na koniec 2020 roku w podziale geograficznym (w mln PLN)"]
["Tabela 11. Stan zobowiązań z tytułu zagranicznych inwestycji bezpośrednich w Polsce na koniec 2020 roku w podziale na rodzaje działalności gospodarczej (w mln PLN)"]
["Tabela 12. Stan zobowiązań z tytułu zagranicznych inwestycji bezpośrednich w podziale regionalnym w poszczególnych obszarach związanych z produkcją pojazdów w Polsce na koniec 2020 roku (w mln zł)"]
["Tabela 13. Zatrudnienie w podmiotach bezpośredniego inwestowania w podziale regionalnym w poszczególnych obszarach związanych z produkcją pojazdów w Polsce na koniec 2020 roku"]
["Tabela 14. Stan zobowiązań z tytułu zagranicznych inwestycji bezpośrednich w poszczególnych obszarach związanych z produkcją pojazdów w Polsce (w mln zł)"]
["Tabela 15. Transakcje z tytułu zagranicznych inwestycji bezpośrednich w poszczególnych obszarach związanych z produkcją pojazdów w Polsce (w mln zł)"]
["Tabela 16. Dochody z tytułu zagranicznych inwestycji bezpośrednich w poszczególnych obszarach związanych z produkcją pojazdów w Polsce (w mln zł)"]
["Tabela 17. Stan zobowiązań z tytułu zagranicznych inwestycji bezpośrednich w Polsce na koniec 2020 roku w podziale na regiony zgodnie z klasyfikacją NUTS2 (w mln PLN)"]
["Tabela 18. Liczba bezpośrednich inwestorów zagranicznych zaangażowanych w działalność związaną z wytwarzaniem energii elektrycznej ze źródeł odnawialnych  w Polsce na koniec roku w latach 2011–2020"]
["Tabela 19. Stan zobowiązań z tytułu zagranicznych inwestycji bezpośrednich w Polsce w działalność związaną z wytwarzaniem energii elektrycznej ze źródeł odnawialnych na koniec roku w latach 2011–2020 (w mln PLN)"]
["Tabela 20. Stan zobowiązań z tytułu zagranicznych inwestycji bezpośrednich w działalność związaną z wytwarzaniem energii elektrycznej ze źródeł odnawialnych w Polsce według kraju siedziby inwestora dominującego na koniec roku w latach 2011–2020 (w mln PLN) "]
["Tabela 21. Transakcje z tytułu zagranicznych inwestycji bezpośrednich w Polsce w działalność związaną z wytwarzaniem energii elektrycznej ze źródeł odnawialnych w latach 2011–2020 (w mln PLN)"]
["Tabela 22. Dochody z tytułu zagranicznych inwestycji bezpośrednich w Polsce w działalność związaną z wytwarzaniem elektrycznej ze źródeł odnawialnych w latach 2011–2020 (w mln PLN)"]
["Tabela 23. Dochody z tytułu zagranicznych inwestycji bezpośrednich w Polsce w latach 2000−2020 (w mln PLN)"]
["Tabela 24. Dochody z tytułu zagranicznych inwestycji bezpośrednich w Polsce w 2020 roku w podziale geograficznym według kraju siedziby podmiotu dominującego i kraju siedziby inwestora bezpośredniego (w mln PLN)"]
["Tabela 25. Dochody z tytułu zagranicznych inwestycji bezpośrednich w Polsce w 2020 roku w podziale geograficznym (w mln PLN)"]
["Tabela 26. Dochody z tytułu zagranicznych inwestycji bezpośrednich w Polsce w 2020 roku w podziale na rodzaje działalności gospodarczej (w mln PLN)"]
["Tabela 27. Dekompozycja dochodów z tytułu zagranicznych inwestycji bezpośrednich w Polsce w rozliczeniu na przyczyny zmian w latach 2001-2020 (w mln PLN)"]
["Tabela 28. Wskaźnik dochodowości w podziale na rodzaje działalności gospodarczej podmiotów bezpośredniego inwestowania w Polsce w latach 2012-2020 (w %)"]
["Tabela 29 Oprocentowanie finansowania dłużnymi instrumentami finansowymi w zagranicznych inwestycjach bezpośrednich w Polsce w latach 2011-2020 (w %)"]
["Tabela 30.  Średnioroczne oprocentowanie finasowania dłużnymi instrumentami finansowym w zagranicznych inwestycjach bezpośrednich w Polsce w latach 2011-2020 w podziale na rodzaje działalności gospodarczej (w%)"]
["Tabela 31. Transakcje z tytułu polskich inwestycji bezpośrednich za granicą w latach 2000−2020 (w mln PLN)"]
["Tabela 32. Transakcje z tytułu polskich inwestycji bezpośrednich za granicą w 2020 roku w podziale geograficznym (w mln PLN)"]
["Tabela 33. Transakcje z tytułu polskich inwestycji bezpośrednich za granicą w 2020 roku w podziale na rodzaje działalności gospodarczej (w mln PLN)"]
["Tabela 34. Stan należności z tytułu polskich inwestycji bezpośrednich za granicą na koniec roku w latach 2000−2020 (w mln PLN)"]
["Tabela 35. Stan należności z tytułu polskich inwestycji bezpośrednich za granicą na koniec 2020 roku w podziale geograficznym (w mln PLN)"]
["Tabela 36. Stan należności z tytułu polskich inwestycji bezpośrednich za granicą na koniec 2020 roku w podziale na rodzaje działalności gospodarczej (w mln PLN)"]
["Tabela 37. Dochody z tytułu polskich inwestycji bezpośrednich za granicą w latach 2000−2020 (w mln PLN)"]
["Tabela 38. Dochody z tytułu polskich inwestycji bezpośrednich za granicą w 2020 roku w podziale geograficznym (w mln PLN)"]
["Tabela 39. Dochody z tytułu polskich inwestycji bezpośrednich za granicą w 2020 roku w podziale na rodzaje działalności gospodarczej (w mln PLN)"]
["Tabela 40. Stan zobowiązań Polski z tytułu inwestycji bezpośrednich na koniec roku w latach 2011-2020 (w mln PLN)"]

{"sheet":"Tab.1.ZIB_Napływ_Inflow","index":1,"n_rows":33,"n_cols":5,"rows_kept":33,"cut":false,"hidden":false,"merged":[[4,0,5,0]]}
["Transakcje z tytułu zagranicznych inwestycji bezpośrednich w Polsce w latach 2000−2020 (w mln PLN)"]
["Dane z wyłączeniem podmiotów specjalnego przeznaczenia"]
["Foregin direct investment in Poland - transactions in 2000–2020 (in PLN million)"]
["Data excluding resident Special Purpose Entities"]
["Rok /\nYear","Akcje i inne formy udziałow kapitałowych /\nEquity ","Reinwestycje zysków /\nReinvestment of earnings","Instrumenty dłużne /\nDebt instruments","Ogółem napływ kapitału / \nTotal FDI inflows"]
[null,"netto /\nnet","netto /\nnet","netto /\nnet","netto /\nnet\n(5=2+3+4)"]
["1",2,3,4,5]
[2000,38771,-1739,4018,41050]
[2001,21672,-4259,5427.912701699528,22840.912701699526]
[2002,17432,-4991,4001.9585036429062,16442.958503642905]
[2003,17733,-328,-1917.493470295577,15487.506529704424]
[2004,25978.548999999999,22620,-4193.8838257021944,44404.665174297807]
[2005,9569.7710000000006,10937,6034.5758548637587,26541.346854863761]
[2006,10558.106,17646,17032.195182527881,45236.301182527881]
[2007,16154.135,25610,13141.528709778537,54905.663709778542]
[2008,19796.877,-2301,12096.911897508066,29592.788897508064]
[2009,10692.313,15497,5134.7849068768701,31324.097906876872]
[2010,1612.8084190000009,22448,14523.78490687687,38584.593325876871]
[2011,-804.90000000000055,21572,26416.7,47183.8]
[2012,12447,18254.099999999999,9756.6,40457.699999999997]
[2013,-5674.7000000000007,14732.2,2401.2000000000007,11458.7]
[2014,13297,25939.5,5774.8,45011.3]
[2015,21879,29145.1,6539.4,57563.4]
[2016,7749.5,37295.4,16817.900000000001,61862.8]
[2017,-3991.5,39048.699999999997,-391.9,34665.300000000003]
[2018,17887.900000000001,35161.9,4724.2,57774]
[2019,11068.7,43786.9,-2985,51870.6]
[2020,16821.099999999999,44147.3,-7029.5,53938.9]
["Z uwagi na występujące zaokrąglenia suma wartości składowych może różnić się od wartości agregatu."]
["Totals may not equal the sum of components due to rounding"]
[]
["Ostatnia aktualizacja - wrzesień 2021"]
["Last updated: September 2021"]

{"sheet":"Tab.2.ZIB_Napływ_Inflow_geo","index":2,"n_rows":48,"n_cols":7,"rows_kept":48,"cut":false,"hidden":false,"merged":[[4,0,5,0],[4,1,5,1],[4,2,5,2]]}
["Transakcje z tytułu zagranicznych inwestycji bezpośrednich w Polsce w 2020 roku w podziale geograficznym (w mln PLN)"]
["Dane z wyłączeniem podmiotów specjalnego przeznaczenia"]
["Foreign direct investment in Poland - transactions in 2020 broken down by geography (in PLN million)"]
["Data excluding resident Special Purpose Entities"]
["Opis","Kod DSD /\nDSD code","Description","Akcje i inne formy udziałow kapitałowych /\nEquity ","Reinwestycje zysków / \nReinvestment of earnings","Instrumenty dłużne /\nDebt instruments","Ogółem napływ kapitału / \nTotal FDI inflows"]
[null,null,null,"netto /\nnet","netto /\nnet","netto /\nnet","netto / \nnet\n(7=4+5+6)"]
["1","2","3","4","5",6,7]
["Wszystkie kraje","W0","Total World",16821.099999999999,44147.3,-7029.5,53938.9]
["(w tym kraje)","","including:","","","",""]
["Niderlandy","NL","Netherlands",7381.3,9902.4,-3471.8,13811.8]
["Luksemburg","LU","Luxembourg",3136.7,6834.1,-936.8,9034]
["Niemcy","DE","Germany",3626.3,8920.6,-4133.8,8413.1]
["Szwajcaria","CH","Switzerland",2747.7,1939.8,-923.2,3764.4]
["Cypr","CY","Cyprus",-2276.1999999999998,2564.4,3353.2,3641.4]
["Austria","AT","Austria",2280.4,47.4,1141.7,3469.4]
["Dania","DK","Denmark",1948.8,1376.1,-741.9,2583]
["Malta","MT","Malta",2117.3000000000002,-112.9,414.2,2418.6]
["Belgia","BE","Belgium",878.9,730.9,519.9,2129.6999999999998]
["Republika Czeska","CZ","Czech Republic",323.10000000000002,494.2,1298.5999999999999,2116]
["Irlandia","IE","Ireland",2034.5,700.3,-700.6,2034.3]
["Wielka Brytania","GB","United Kingdom",-1739.2,2239.4,1385.2,1885.4]
["Hiszpania","ES","Spain",102.6,1011,191.9,1305.5]
["Finlandia","FI","Finland",262.10000000000002,269,536.20000000000005,1067.3]
["Włochy","IT","Italy",386.6,1293.0999999999999,-871,808.7]
["Szwecja","SE","Sweden",530.29999999999995,1523.2,-1261.0999999999999,792.4]
["Stany Zjednoczone Ameryki Północnej","US","United States",1.5,1039.8,-405.8,635.5]
["Australia","AU","Australia",26,-2.2999999999999998,487.9,511.7]
["Hongkong","HK","HongKong",27.6,67.5,-603,-507.8]
["Kanada","CA","Canada",-32.200000000000003,-14.1,-508,-554.29999999999995]
["Węgry","HU","Hungary",-2389.3000000000002,-43.1,1084.4000000000001,-1348]
["Francja","FR","France",-6292.8,2745.7,-1894.7,-5441.8]
["(w tym strefy ekonomiczne)","","including economic areas:","","","",""]
["Unia Europejska (27 krajów)","B6","EU27",14039.8,38583,-5292,47330.8]
["Strefa Euro (19 krajów)","I8","EA-19",13701.4,35231.9,-5514.5,43418.8]
["Europejska Strefa Wolnego Handlu (EFTA)","R2","EFTA",3008.6,2195.4,-1069.4000000000001,4134.6000000000004]
["Organizacja Współpracy Gospodarczej i Rozwoju (OECD)","P6","OECD",16877,41297.1,-10399.299999999999,47774.8]
["Północnoamerykańska Strefa Wolnego Handlu (NAFTA)","R3","NAFTA",-30.8,1032.5999999999999,-900.4,101.4]
["CIS","R14","CIS countries",9.1,79.5,65.7,154.30000000000001]
["ASEAN","R4","ASEAN countries",28.7,-37.799999999999997,300.8,291.7]
["OPEC","R5","OPEC countries",2.6,66.099999999999994,-50.1,18.5]
["Ameryka Łacińska","A8","Latin America",":",6.2,26.3,32.5]
["Kraje Afrykańskie, Karaibskie i Pacyfiku (ACP)","R6","ACP countries",-8.6,24.7,83.8,99.9]
["Poza Unią Europejską","D6","Extra EU27",2781.2,5564.3,-1737.5,6608.1]
["Z uwagi na występujące zaokrąglenia suma wartości składowych może różnić się od wartości agregatu."]
["Totals may not equal the sum of components due to rounding"]
[]
["Ostatnia aktualizacja - wrzesień 2021"]
["Last updated: September 2021"]

{"sheet":"Tab.3.ZIB_Napływ_Inflow_act","index":3,"n_rows":31,"n_cols":7,"rows_kept":31,"cut":false,"hidden":false,"merged":[[4,0,5,0],[4,1,5,1],[4,2,5,2]]}
["Transakcje z tytułu zagranicznych inwestycji bezpośrednich w Polsce w 2020 roku w podziale na rodzaje działalności gospodarczej (w mln PLN)"]
["Dane z wyłączeniem podmiotów specjalnego przeznaczenia"]
["Foreign direct investment in Poland - transactions in 2020 broken down by economic activity (in PLN million)"]
["Data excluding resident Special Purpose Entities"]
["Opis","Kod DSD /\nDSD code","Description","Akcje i inne formy udziałow kapitałowych /\nEquity ","Reinwestycje zysków /\nReinvestment of earnings","Instrumenty dłużne /\nDebt instruments","Ogółem napływ kapitału / \nTotal FDI inflows"]
[null,null,null,"netto /\nnet","netto /\nnet","netto / \nnet","netto /\nnet\n(7=4+5+6)"]
["1","2","3","4","5",6,7]
["Ogółem","FDI_T","Total",16821.099999999999,44147.3,-7029.5,53938.9]
["(w tym)","","including:","","","",""]
["Rolnictwo, leśnictwo i rybactwo","A","Agriculture, forestry and fishing",-20.6,-7.9,-152.19999999999999,-180.7]
["Górnictwo i wydobywanie","B","Mining and quarrying",417,-243.5,-255.7,-82.3]
["Przetwórstwo przemysłowe","C","Manufacturing",1636.8,13552.3,-2275.1999999999998,12913.9]
["Wytwarzanie i zaopatrywanie w energię elektryczną, gaz, parę wodną i powietrze do układów klimatyzacyjnych","D35","Electricity,Gas, Steam and Air Conditioning Supply",1169.8,970.4,337.8,2478.1]
["Dostawa wody; gospodarowanie ściekami i odpadami oraz działalność związana z rekultywacją","E","Water Supply; Sewerage, Waste Management and Remediation Activities",40.1,290,-71,259.10000000000002]
["Budownictwo","F","Construction",420.4,292.89999999999998,-2317.6,-1604.3]
["Usługi (łącznie)","GTU","Total Services",12679.1,29293.1,-1971.6,40000.6]
["(w tym)","","including:","","","",""]
["Handel hurtowy i detaliczny; naprawa pojazdów samochodowych i motocykli","G","Wholesale and Retail Trade; Repair of Motor Vehicleas and Motorcycles",1735.5,9103.7000000000007,-4398,6441.2]
["Transport i gospodarka magazynowa","H","Transportation and Storage",940.5,1591.6,82,2614.1999999999998]
["Działalność związana z zakwaterowaniem i usługami gastronomicznym","I","Accomodation and Food Service Activities",615.70000000000005,-403.7,332.6,544.6]
["Informacja i komunikacja","J","Information and Communication",2210.6999999999998,4131.5,-4775,1567.2]
["Działalność finansowa i ubezpieczeniowa","K","Financial and Insurance Activities",-443.9,7795.1,987.4,8338.7000000000007]
["Działalność związana z obsługą rynku nieruchomości","L","Real Estate Activities",2509.9,2495,4147.3,9152.2999999999993]
["Działalność profesjonalna, naukowa i techniczna","M","Professional, Scientific and Technical Activities",3191.1,3816.1,2368.6,9375.7999999999993]
["Działalność w zakresie usług administrowania i działalność wspierająca","N","Administrative and Support Service Activities",1824.9,654.70000000000005,-867.2,1612.5]
["Opieka zdrowotna i pomoc społeczna","Q","Human Health and Social Work Activities",50.8,356.9,9.4,417]
["Z uwagi na występujące zaokrąglenia suma wartości składowych może różnić się od wartości agregatu."]
["Totals may not equal the sum of components due to rounding"]
[]
["Ostatnia aktualizacja - wrzesień 2021"]
["Last updated: September 2021"]

{"sheet":"Tab.4.ZIB_zdrowie_cyfrowy","index":4,"n_rows":24,"n_cols":5,"rows_kept":24,"cut":false,"hidden":false,"merged":[[7,0,12,0],[4,1,5,1],[13,0,18,0],[4,0,5,0]]}
["Stan zobowiązań z tytułu zagranicznych inwestycji bezpośrednich w Polsce w ochronę zdrowia oraz sektor cyfrowy w latach 2015–2020 (w mln PLN)"]
["Dane z wyłączeniem podmiotów specjalnego przeznaczenia"]
["Foreign direct investment in Poland - positions at the end of 2020 broken down by health care and digital sector in 2015-2020 (in PLN million)"]
["Data excluding resident Special Purpose Entities"]
["Sektor /\nSector","Rok /\nYear","Akcje i inne formy udziałow kapitałowych /\nEquity ","Instrumenty dłużne /\nDebt instruments","Ogółem / \nTotal FDI Positions"]
[null,null,"netto / \nnet","netto /\nnet","netto /\nnet\n(5=3+4)"]
[1,2,3,4,5]
["ochrona zdrowia",2015,17401.900000000001,4966.5,22368.400000000001]
[null,2016,18239.8,5914.6,24154.400000000001]
[null,2017,18975.400000000001,6139.8,25115.200000000001]
[null,2018,19618.2,3766.4,23384.6]
[null,2019,20333,4633.2,24966.2]
[null,2020,24281.1,2637,26918.1]
["sektor cyfrowy",2015,45945.7,15543.5,61489.2]
[null,2016,36451.699999999997,24844.799999999999,61296.5]
[null,2017,37285.699999999997,23478.400000000001,60764.2]
[null,2018,38100.800000000003,18239.099999999999,56339.9]
[null,2019,43403.3,15883.5,59286.8]
[null,2020,54840.9,16066.4,70907.399999999994]
["Z uwagi na występujące zaokrąglenia suma wartości składowych może różnić się od wartości agregatu."]
["Totals may not equal the sum of components due to rounding"]
[]
["Ostatnia aktualizacja - wrzesień 2021"]
["Last updated: September 2021"]

{"sheet":"Tab.5.ZIB_Napływ_Inflow_M&A","index":5,"n_rows":22,"n_cols":4,"rows_kept":22,"cut":false,"hidden":false,"merged":[]}
["Transakcje z tytułu zagranicznych inwestycji bezpośrednich w Polsce z wyszczególnieniem fuzji i przejęć w Polsce w latach 2011-2020 (w mln PLN)"]
["Dane z wyłączeniem podmiotów specjalnego przeznaczenia"]
["Foreign direct investment in Poland - transactions including mergers and acquisitions in 2011−2020 (in PLN million)"]
["Data excluding resident Special Purpose Entities"]
["Rok /\nYear","Pozostałe inwestycje /\nResidual investment","Fuzje i przejęcia /\nMergers and acquisitions","Ogółem /\nTotal"]
[null,"netto /\nnet","netto /\nnet","netto /\nnet\n(4=2+3)"]
[1,2,3,4]
[2011,46161.364000000001,1022.436,47183.8]
[2012,47241.182000000001,-6783.482,40457.699999999997]
[2013,30538.506000000001,-19079.806,11458.7]
[2014,44824.527000000002,1917.7729999999999,46742.3]
[2015,63308.4,-5745,57563.4]
[2016,66281.8,-4419,61862.8]
[2017,48911.600000000006,-14246.3,34665.300000000003]
[2018,50924.200000000004,-551.9,50372.3]
[2019,59242.6,-7372,51870.6]
[2020,52386.9,1552,53938.9]
["Z uwagi na występujące zaokrąglenia suma wartości składowych może różnić się od wartości agregatu."]
["Totals may not equal the sum of components due to rounding"]
[]
["Ostatnia aktualizacja - wrzesień 2021"]
["Last updated: September 2021"]

{"sheet":"Tab.6.ZIB_Stany_Position","index":6,"n_rows":33,"n_cols":4,"rows_kept":33,"cut":false,"hidden":false,"merged":[[4,0,5,0]]}
["Stan zobowiązań z tytułu zagranicznych inwestycji bezpośrednich w Polsce na koniec roku w latach 2000−2020 (w mln PLN)"]
["Dane z wyłączeniem podmiotów specjalnego przeznaczenia"]
["Foreign direct investment in Poland - positions at the end of the year in 2000–2020 (in PLN million)"]
["Data excluding resident Special Purpose Entities"]
["Rok /\nYear","Akcje i inne formy udziałów kapitałowych /\nEquity ","Instrumenty dłużne /\nDebt instruments","Ogółem /\nTotal FDI Positions"]
[null,"netto /\nnet","netto /\nnet","netto /\nnet\n(4=2+3)"]
["1","2","3",4]
[2000,105043,33657.574344000001,138700.57434399999]
[2001,123619,37405.567640000001,161024.56763999999]
[2002,138155,43402.601898000001,181557.60189799999]
[2003,156789,53106.39385,209895.39384999999]
[2004,206089.549,45409.439451999999,251498.98845199999]
[2005,232454.31899999999,49144.201199999996,281598.52019999997]
[2006,269723.24900000001,67288.882006,337012.13100599998]
[2007,323224.99599999998,77016.109748000003,400241.10574799997]
[2008,340238.23200000002,99344.184986000007,439582.41698600003]
[2009,373166.44500000001,103971.017108,477137.46210800001]
[2010,441739.233099,114332.419434,556071.65253299999]
[2011,424678.69999999995,137225.29999999999,561904]
[2012,472597.9,144077.79999999999,616675.69999999995]
[2013,540261.4,149989.1,690250.5]
[2014,569116.5,172600,741716.5]
[2015,543296.5,182255,725551.5]
[2016,582603.69999999995,206170.5,788774.3]
[2017,639015.69999999995,197826.7,836842.4]
[2018,649860,213093.4,862953.4]
[2019,704006.3,209668.8,913675.1]
[2020,722250.2,216310.2,938560.5]
["Z uwagi na występujące zaokrąglenia suma wartości składowych może różnić się od wartości agregatu."]
["Totals may not equal the sum of components due to rounding"]
[]
["Ostatnia aktualizacja - wrzesień 2021"]
["Last updated: September 2021"]

{"sheet":"Tab.7.ZIB_Deko_Stany_Deco_Pos","index":7,"n_rows":17,"n_cols":5,"rows_kept":17,"cut":false,"hidden":false,"merged":[[4,0,5,0],[4,1,5,1]]}
["Dekompozycja zmiany stanu zobowiązań z tytułu zagranicznych inwestycji bezpośrednich w Polsce w 2020 roku na spółki giełdowe i pozostałe podmioty (w mln PLN)"]
["Dane z wyłączeniem podmiotów specjalnego przeznaczenia"]
["Foreign direct investment in Poland - changes of the position in public listed companies and other companies in 2020 (in PLN million)"]
["Data excluding resident Special Purpose Entities"]
["Dekompozycja /  \nDecomposition","Opis / \nDescription","Giełdowe / \nPublic listed companies","Pozostałe podmioty / \nOther companies","Ogółem /\nTotal FDI Positions"]
[null,null,"netto /\nnet","netto /\nnet","netto /\nnet\n(5=3+4)"]
[1,2,3,4,5]
["Stan na początek okresu","Positions at the beginning of the year",113860,799815.1,913675.1]
["Transakcje (bez reinwestowanych zysków)","Transactions (excluding reinvestment of earnings)",5150,4641.5999999999985,9791.5999999999985]
["Reinwestowane zyski","Reinvestment of earnings",2868,41279.300000000003,44147.3]
["Zmiany wyceny, różnice kursowe i reklasyfikacje","Valuation changes, exchange rate changes, reclassifications",-11528,-17525.499999999978,-29053.499999999978]
["Stan na koniec okresu","Positions at the end of year",110350,828210.5,938560.5]
["Z uwagi na występujące zaokrąglenia suma wartości składowych może różnić się od wartości agregatu."]
["Totals may not equal the sum of components due to rounding"]
[]
["Ostatnia aktualizacja - wrzesień 2021"]
["Last updated: September 2021"]

{"sheet":"Tab.8.ZIB_Stany_UIC_IIC","index":8,"n_rows":36,"n_cols":7,"rows_kept":36,"cut":false,"hidden":false,"merged":[]}
["Stan zobowiązań z tytułu zagranicznych inwestycji bezpośrednich w Polsce na koniec 2020 roku w podziale geograficznym według kraju siedziby podmiotu dominującego i kraju siedziby inwestora bezpośredniego (w mln PLN)"]
["Dane z wyłączeniem podmiotów specjalnego przeznaczenia"]
["Foreign direct investment in Poland - positions at the end of 2020 broken down by Ultimate Investing Country and Immediate Investing Country (in PLN million)"]
["Data excluding resident Special Purpose Entities"]
["Opis","Kod DSD / \nDSD code","Description","Według kraju siedziby podmiotu dominującego /\nAccording to Ultimate Investing Country","% ogółem /\n% total","Według kraju siedziby inwestora bezpośredniego /\nAccording to Immediate Investing Country","% ogółem /\n% total"]
[1,2,3,4,5,6,7]
["Niemcy","DE","Germany",185893.1,19.8,162596,17.3]
["Francja","FR","France",88411.5,9.4,79980.5,8.5]
["Stany Zjednoczone","US","United States",87837.5,9.4,15936.2,1.7]
["Niderlandy","NL","Netherlands",86714.1,9.1999999999999993,208315.6,22.2]
["Wielka Brytania","GB","United Kingdom",47390.9,5,32950,3.5]
["Polska","PL","Poland",39882.6,4.2,0,0]
["Austria","AT","Austria",34532.9,3.7,39544.199999999997,4.2]
["Hiszpania","ES","Spain",31293.8,3.3,29630.6,3.2]
["Szwajcaria","CH","Switzerland",28688.3,3.1,33089.300000000003,3.5]
["Japonia","JP","Japan",26472.9,2.8,4103.8999999999996,0.4]
["Szwecja","SE","Sweden",21268.6,2.2999999999999998,16255.9,1.7]
["Włochy","IT","Italy",20162.900000000001,2.1,23899.4,2.5]
["Korea Południowa","KR","Korea, Republic of (South Korea)",17119.3,1.8,14138,1.5]
["Dania","DK","Denmark",13760.9,1.5,17963.3,1.9]
["Belgia","BE","Belgium",13080.3,1.4,33868.699999999997,3.6]
["Kanada","CA","Canada",9882.1,1.1000000000000001,552.1,0.1]
["Finlandia","FI","Finland",9290.5,1,7424.8,0.8]
["Portugalia","PT","Portugal",9071.6,1,3784,0.4]
["Luksemburg","LU","Luxembourg",7496.3,0.8,123053,13.1]
["Czechy","CZ","Czech Republic",5506.1,0.6,11388.6,1.2]
["Cypr","CY","Cyprus",0,0,40739.4,4.3]
["Malta","MT","Malta",0,0,10565.7,1.1000000000000001]
["Kraj nieznany","W190","World not allocated",109934.7,11.7,0,0]
["Pozostałe kraje"," -","Other countries",44869.59999999986,4.8,28781.29999999993,3.1]
["Wszystkie kraje","W0","Total World",938560.5,100,938560.5,100]
["Z uwagi na występujące zaokrąglenia suma wartości składowych może różnić się od wartości agregatu."]
["Totals may not equal the sum of components due to rounding"]
[]
["Ostatnia aktualizacja - wrzesień 2021"]
["Last updated: September 2021"]

{"sheet":"Tab.9.ZIB_Stany_UIC_Act","index":9,"n_rows":29,"n_cols":11,"rows_kept":29,"cut":false,"hidden":false,"merged":[]}
["Stan zobowiązań z tytułu zagranicznych inwestycji bezpośrednich w Polsce na koniec 2020 roku w podziale geograficznym według kraju siedziby podmiotu dominującego i rodzaju działalności gospodarczej podmiotu bezpośredniego inwestowania (w mln PLN)"]
["Dane z wyłączeniem podmiotów specjalnego przeznaczenia"]
["Foreign direct investment in Poland - positions at the end of 2020 broken down by Ultimate Investing Country and activity of direct investment enterprise (in PLN million)"]
["Data excluding resident Special Purpose Entities"]
[null,null,"Opis","Przetwórstwo przemysłowe","Budownictwo","Handel","Informacja i komunikacja","Finanse","Nieruchomości","Działalność profesjonalna","Pozostałe"]
[null,null,"Description","Manufacturing","Construction","Trade","Information and communication","Finance","Real Estate","Professional activities","Other"]
["Opis","Description","Kod DSD","C","F","G","J","K","L","M","-"]
[1,2,3,4,5,6,7,8,9,10,11]
["Austria","Austria","AT",7939.3,2247.4,3479,"c",8320.1,6410.3,523.20000000000005,"c"]
["Szwajcaria","Switzerland","CH",15660.4,172.5,3592,1863.2,60.5,255.7,6490.3,405.4]
["Niemcy","Germany","DE",62144.9,6055.5,38063.4,"c",26381.3,16861.400000000001,3685.6,"c"]
["Hiszpania","Spain","ES",4878.1000000000004,5407.7,1826.7,"c","c",64.599999999999994,577.20000000000005,"c"]
["Francja","France","FR",24285.9,2458.4,15795.7,"c",8432.2000000000007,7289.8,8927.2999999999993,"c"]
["Wielka Brytannia","United Kingdom","GB",17928.8,2420.9,10436.700000000001,495.6,4539.5,5443.2,2514,4167.1000000000004]
["Włochy","Italy","IT",16826.3,1101,2070.5,"c",-1579.9,508.3,484.3,"c"]
["Japonia","Japan","JP",17933.7,176.3,5997.5,"c",1814,"c",96.9,"c"]
["Niderlandy","Netherlands","NL",17805.099999999999,8404.2000000000007,8027.6,2313.6,23721,13338.8,4216.2,5326.5]
["Polska","Poland","PL",4542.3,1585.3,13697.8,"c",1044.8,3364.7,3533.2,"c"]
["Szwecja","Sweden","SE",9980,"c",1892.8,148.69999999999999,"c",4361.5,1036.2,"c"]
["Stany Zjednoczone","United States","US",33288.400000000001,2160.4,11994.5,8454.7000000000007,11214.2,5589,6111.6,9785.7000000000007]
["Kraj nieznany","World not allocated","W190",16988.5,6806.1,3902.4,14928,7154.6,28421.3,22792.7,1882.4]
["Pozostałe kraje","Other countries","-",58016.9,"c",20773.5,1378,10339.200000000001,"c",9457.7999999999993,15502.4]
[]
["Znakiem \"c\" zostały oznaczone dane, które nie mogą zostać opublikowane ze względu na ograniczenia art. 23 ust. 6 Ustawy o NBP"]
["Z uwagi na występujące zaokrąglenia suma wartości składowych może różnić się od wartości agregatu."]
["Totals may not equal the sum of components due to rounding"]
[]
["Ostatnia aktualizacja - wrzesień 2021"]
["Last updated: September 2021"]

{"sheet":"Tab.10.ZIB_Stany_Position_geo","index":10,"n_rows":48,"n_cols":6,"rows_kept":48,"cut":false,"hidden":false,"merged":[[4,0,5,0],[4,1,5,1],[4,2,5,2]]}
["Stan zobowiązań z tytułu zagranicznych inwestycji bezpośrednich w Polsce na koniec 2020 roku w podziale geograficznym (w mln PLN)"]
["Dane z wyłączeniem podmiotów specjalnego przeznaczenia"]
["Foreign direct investment in Poland - positions at the end of 2020 broken down by geography (in PLN million)"]
["Data excluding resident Special Purpose Entities"]
["Opis","Kod DSD /\nDSD code","Description","Akcje i inne formy udziałow kapitałowych /\nEquity ","Instrumenty dłużne /\nDebt instruments","Ogółem / \nTotal FDI Positions"]
[null,null,null,"netto / \nnet","netto /\nnet","netto /\nnet\n(6=4+5)"]
["1","2","3","4",5,6]
["Wszystkie kraje","W0","Total World",722250.2,216310.2,938560.5]
["(w tym kraje)","","including:","","",""]
["Niderlandy","NL","Netherlands",166978.5,39981.699999999997,206960.2]
["Niemcy","DE","Germany",133953.70000000001,28642.3,162596]
["Luksemburg","LU","Luxembourg",95030.6,28022.400000000001,123053]
["Francja","FR","France",50188.4,28977.4,79165.899999999994]
["Cypr","CY","Cyprus",25768.5,14970.8,40739.4]
["Austria","AT","Austria",27124.9,12419.3,39544.199999999997]
["Belgia","BE","Belgium",17482.099999999999,16385.599999999999,33867.699999999997]
["Szwajcaria","CH","Switzerland",27288.5,5800.9,33089.300000000003]
["Wielka Brytania","GB","United Kingdom",31701.8,1248.3,32950]
["Hiszpania","ES","Spain",24391.1,5239.6000000000004,29630.6]
["Włochy","IT","Italy",23184.799999999999,714.6,23899.4]
["Dania","DK","Denmark",16930.7,1032.5999999999999,17963.3]
["Szwecja","SE","Sweden",13668.4,2587.5,16255.9]
["Stany Zjednoczone Ameryki Północnej","US","United States",9970.5,5965.7,15936.2]
["Republika Korei (Korea Południowa)","KR","Korea, Republic of (South Korea)",12083.1,2054.9,14138]
["Republika Czeska","CZ","Czech Republic",3804,7584.6,11388.6]
["Malta","MT","Malta",8839.7999999999993,1725.9,10565.7]
["Norwegia","NO","Norway",5953.4,1679.4,7632.7]
["Finlandia","FI","Finland",5965.8,1459,7424.8]
["Irlandia","IE","Ireland",3775,1736.4,5511.5]
["Węgry","HU","Hungary",3222.6,1981.3,5203.8999999999996]
["Japonia","JP","Japan",2890.3,1213.7,4103.8999999999996]
["(w tym strefy ekonomiczne)","","including economic areas:","","",""]
["Unia Europejska (27 krajów)","B6","EU27",627662.19999999995,194817,822479.2]
["Strefa Euro (19 krajów)","I8","EA-19",589906.9,182211,772117.8]
["Europejska Strefa Wolnego Handlu (EFTA)","R2","EFTA",33800.800000000003,7572.2,41373]
["Organizacja Współpracy Gospodarczej i Rozwoju (OECD)","P6","OECD",685150.3,197168.1,882318.4]
["Północnoamerykańska Strefa Wolnego Handlu (NAFTA)","R3","NAFTA",11631,4744.2,16375.2]
["CIS","R14","CIS countries",-586.6,-339.8,-926.4]
["ASEAN","R4","ASEAN countries",473.3,451.3,924.6]
["OPEC","R5","OPEC countries",559,76.3,635.29999999999995]
["Ameryka Łacińska","A8","Latin America",61.5,-279.60000000000002,-218.1]
["Kraje Afrykańskie, Karaibskie i Pacyfiku (ACP)","R6","ACP countries",132,-119.9,12.1]
["Poza Unią Europejską","D6","Extra EU27",94588,21493.200000000001,116081.2]
["Z uwagi na występujące zaokrąglenia suma wartości składowych może różnić się od wartości agregatu."]
["Totals may not equal the sum of components due to rounding"]
[]
["Ostatnia aktualizacja - wrzesień 2021"]
["Last updated: September 2021"]

{"sheet":"Tab.11.ZIB_Stany_Position_act","index":11,"n_rows":31,"n_cols":6,"rows_kept":31,"cut":false,"hidden":false,"merged":[[4,0,5,0],[4,1,5,1],[4,2,5,2]]}
["Stan zobowiązań z tytułu zagranicznych inwestycji bezpośrednich w Polsce na koniec 2020 roku w podziale na rodzaje działalności gospodarczej (w mln PLN)"]
["Dane z wyłączeniem podmiotów specjalnego przeznaczenia"]
["Foreign direct investment in Poland - position at the end of 2020 broken down by economic activity (in PLN million)"]
["Data excluding resident Special Purpose Entities"]
["Opis","Kod DSD /\nDSD code","Description","Akcje i inne formy udziałow kapitałowych /\nEquity ","Instrumenty dłużne /\nDebt instruments","Ogółem / \nTotal FDI Positions"]
[null,null,null,"netto /\nnet","netto /\nnet","netto /\nnet\n(6=4+5)"]
["1","2","3","4",5,6]
["Ogółem","FDI_T","Total",722250.2,216310.2,938560.5]
["(w tym)","","including:","","",""]
["Rolnictwo, leśnictwo i rybactwo","A","Agriculture, forestry and fishing",2192,1708.7,3900.7]
["Górnictwo i wydobywanie","B","Mining and quarrying",-244.6,2246.5,2001.9]
["Przetwórstwo przemysłowe","C","Manufacturing",283217.8,25000.799999999999,308218.59999999998]
["Wytwarzanie i zaopatrywanie w energię elektryczną, gaz, parę wodną i powietrze do układów klimatyzacyjnych","D35","Electricity,Gas, Steam and Air Conditioning Supply",11322.2,13829.4,25151.7]
["Dostawa wody; gospodarowanie ściekami i odpadami oraz działalność związana z rekultywacją","E","Water Supply; Sewerage, Waste Management and Remediation Activities",1815.5,450.4,2265.9]
["Budownictwo","F","Construction",21031,28909.8,49940.800000000003]
["Usługi (łącznie)","GTU","Total Services",395074.3,144164.5,539238.9]
["(w tym)","","including:","","",""]
["Handel hurtowy i detaliczny; naprawa pojazdów samochodowych i motocykli","G","Wholesale and Retail Trade; Repair of Motor Vehicleas and Motorcycles",124522,17028.099999999999,141550.1]
["Transport i gospodarka magazynowa","H","Transportation and Storage",13710.3,1043.4000000000001,14753.7]
["Działalność związana z zakwaterowaniem i usługami gastronomicznym","I","Accomodation and Food Service Activities",9311.2000000000007,889,10200.299999999999]
["Informacja i komunikacja","J","Information and Communication",46666.7,16414.599999999999,63081.3]
["Działalność finansowa i ubezpieczeniowa","K","Financial and Insurance Activities",106946.9,9595.9,116542.8]
["Działalność związana z obsługą rynku nieruchomości","L","Real Estate Activities",39820.400000000001,61103.3,100923.7]
["Działalność profesjonalna, naukowa i techniczna","M","Professional, Scientific and Technical Activities",42640.6,25635.9,68276.5]
["Działalność w zakresie usług administrowania i działalność wspierająca","N","Administrative and Support Service Activities",7856.8,9019.4,16876.099999999999]
["Opieka zdrowotna i pomoc społeczna","Q","Human Health and Social Work Activities",3737,1012.1,4749.1000000000004]
["Z uwagi na występujące zaokrąglenia suma wartości składowych może różnić się od wartości agregatu."]
["Totals may not equal the sum of components due to rounding"]
[]
["Ostatnia aktualizacja - wrzesień 2021"]
["Last updated: September 2021"]

{"sheet":"Tab.12.ZIB_Stan_reg_samochody","index":12,"n_rows":23,"n_cols":6,"rows_kept":23,"cut":false,"hidden":false,"merged":[]}
["Stan zobowiązań z tytułu zagranicznych inwestycji bezpośrednich w podziale regionalnym w poszczególnych obszarach związanych z produkcją pojazdów w Polsce na koniec 2020 roku (w mln zł)"]
["Dane z wyłączeniem podmiotów specjalnego przeznaczenia"]
["Foreign direct investment in Poland - positions at the end of 2020 for activities in automotive sector by region (in PLN million)"]
["Data excluding resident Special Purpose Entities"]
["Region","Baterie i akumulatory / Manufacture of batteries and accumulators / 27.2","Pojazdy / Manufacture of motor vehicles / 29.1","Nadwozia i przyczepy / Manufacture of bodies (coachwork) for motor vehicles; manufacture of trailers \nand semi-trailers / 29.2","Części / Manufacture of parts and accessories for motor vehicles / 29.3","Ogółem / Total \n(6 = 2+3+4+5)"]
[null,"netto /\nnet","netto /\nnet","netto /\nnet","netto /\nnet","netto /\nnet\n(6=2+3+4+6)"]
[1,2,3,4,5,6]
["dolnośląski",9349.3849109999992,2141.828673,0,9759.7293150000005,21250.942899000001]
["śląski",313.13101499999999,6986.370973,66.929643999999996,6761.4753019999998,14127.906933999999]
["wielkopolski",441.15981699999998,5579.6018670000003,146.83106100000001,1995.996052,8163.5887970000003]
["warszawski stołeczny",57.013795000000002,429.363743,77.749812000000006,3545.9913160000001,4110.1186660000003]
["podkarpacki",0,0,45.054189999999998,3483.7075690000001,3528.761759]
["małopolski",0,202.79130499999999,41.208148000000001,2485.9553700000001,2729.954823]
["mazowiecki regionalny",0,0,0,1479.33113,1479.33113]
["opolski",0,0,35.83766,1288.9081160000001,1324.745776]
["łódzki",0,0,135.15197699999999,437.56523199999998,572.71720899999991]
["pozostałe regiony",12.635476000000001,696.89629100000002,442.35413899999998,2550.8251150000001,3702.7110210000001]
["Ogółem / Total",10173.325014,16036.852852000004,991.11663099999987,33789.484516999997,60990.779014000014]
["Z uwagi na występujące zaokrąglenia suma wartości składowych może różnić się od wartości agregatu."]
["Totals may not equal the sum of components due to rounding"]
[]
["Ostatnia aktualizacja - wrzesień 2021"]
["Last updated: September 2021"]

{"sheet":"Tab.13.ZIB_Zatrudnienie_sam","index":13,"n_rows":18,"n_cols":6,"rows_kept":18,"cut":false,"hidden":false,"merged":[]}
["Zatrudnienie w podmiotach bezpośredniego inwestowania w podziale regionalnym w poszczególnych obszarach związanych z produkcją pojazdów w Polsce na koniec 2020 roku"]
["Employment in direct investment entities at the end of 2020 for activities in automotive sector by region"]
["Region","Baterie i akumulatory / Manufacture of batteries and accumulators / 27.2","Pojazdy / Manufacture of motor vehicles / 29.1","Nadwozia i przyczepy / Manufacture of bodies (coachwork) for motor vehicles; manufacture of trailers \nand semi-trailers / 29.2","Części / Manufacture of parts and accessories for motor vehicles / 29.3","Ogółem / Total \n(6 = 2+3+4+5)"]
[1,2,3,4,5,6]
["dolnośląski",3083,4724,99,25133.663499999999,33039.663499999995]
["śląski",1577.8821,8005.6971999999996,291.66669999999999,42938.264300000003,52813.510300000002]
["wielkopolski",1089.875,11048.6667,536.58330000000001,7930.3213999999998,20605.446400000001]
["warszawski stołeczny",54.2,326.5,447.33330000000001,2379.2808,3207.3141000000001]
["podkarpacki",":",":",206.5,8731.7937000000002,8938.2937000000002]
["małopolski",":",507.88889999999998,184.90479999999999,13603.6111,14296.4048]
["mazowiecki regionalny",":",":",":",2927.4920999999999,2927.4920999999999]
["opolski",":",":",307,2449.5900999999999,2756.5900999999999]
["łódzki",":",":",1549.4,3028.4245999999998,4577.8245999999999]
["pozostałe regiony",":",3227.5277999999998,2108.3492000000001,18520.001199999999,23855.878199999999]
["Ogółem / Total",5804.9570999999996,27840.280599999998,5730.7373000000007,127642.44279999999,167018.4178]
[]
["Ostatnia aktualizacja - wrzesień 2021"]
["Last updated: September 2021"]

{"sheet":"Tab.14.ZIB_Stan_samochody","index":14,"n_rows":22,"n_cols":6,"rows_kept":22,"cut":false,"hidden":false,"merged":[]}
["Stan zobowiązań z tytułu zagranicznych inwestycji bezpośrednich w poszczególnych obszarach związanych z produkcją pojazdów w Polsce (w mln zł)"]
["Dane z wyłączeniem podmiotów specjalnego przeznaczenia"]
["Foreign direct investment in Poland - positions at the end of the year for activities in automotive sector by region (in PLN million)"]
["Data excluding resident Special Purpose Entities"]
["Rok / Year","Baterie i akumulatory / Manufacture of batteries and accumulators / 27.2","Pojazdy / Manufacture of motor vehicles / 29.1","Nadwozia i przyczepy / Manufacture of bodies (coachwork) for motor vehicles; manufacture of trailers \nand semi-trailers / 29.2","Części / Manufacture of parts and accessories for motor vehicles / 29.3","Ogółem / Total / 6 = 2+3+4+5"]
[null,"netto /\nnet","netto /\nnet","netto /\nnet","netto /\nnet","netto /\nnet\n(6=2+3+4+6)"]
[1,2,3,4,5,6]
[2011,375,8256,248.4,15045.7,23925.1]
[2012,395.1,8478.5,240.7,18770.400000000001,27884.700000000004]
[2013,467.9,9155.2999999999993,297.5,20532.900000000001,30453.599999999999]
[2014,575.70000000000005,10612.8,362.8,21800.799999999999,33352.1]
[2015,511.7,11652.9,434.2,24922.3,37521.1]
[2016,485,14053.7,580.79999999999995,25264.2,40383.699999999997]
[2017,611.70000000000005,14443.5,606.79999999999995,27446.3,43108.3]
[2018,747.3,14652.3,745.6,30863.5,47008.7]
[2019,10173.299999999999,16036.9,991.1,33789.5,60990.799999999996]
[2020,8944.7999999999993,15599.9,1035.7,33673,59253.399999999994]
["Z uwagi na występujące zaokrąglenia suma wartości składowych może różnić się od wartości agregatu."]
["Totals may not equal the sum of components due to rounding"]
[]
["Ostatnia aktualizacja - wrzesień 2021"]
["Last updated: September 2021"]

{"sheet":"Tab.15.ZIB_Trans_samochody","index":15,"n_rows":22,"n_cols":6,"rows_kept":22,"cut":false,"hidden":false,"merged":[]}
["Transakcje z tytułu zagranicznych inwestycji bezpośrednich w poszczególnych obszarach związanych z produkcją pojazdów w Polsce (w mln zł)"]
["Dane z wyłączeniem podmiotów specjalnego przeznaczenia"]
["Foreign direct investment in Poland - transactions during the year for activities in automotive sector by region (in PLN million)"]
["Data excluding resident Special Purpose Entities"]
["Rok / Year","Baterie i akumulatory / Manufacture of batteries and accumulators / 27.2","Pojazdy / Manufacture of motor vehicles / 29.1","Nadwozia i przyczepy / Manufacture of bodies (coachwork) for motor vehicles; manufacture of trailers \nand semi-trailers / 29.2","Części / Manufacture of parts and accessories for motor vehicles / 29.3","Ogółem / Total / 6 = 2+3+4+5"]
[null,"netto /\nnet","netto /\nnet","netto /\nnet","netto /\nnet","netto /\nnet\n(6=2+3+4+6)"]
[1,2,3,4,5,6]
[2011,179.4,-1791.6,-1.7,1943.4,329.50000000000023]
[2012,35.1,737.8,-51.5,7958.7,8680.1]
[2013,139.19999999999999,415.1,22.8,1870.4,2447.5]
[2014,171.7,1618.7,57.5,2190.5,4038.4]
[2015,-345,3646.2,8.9,1931,5241.1000000000004]
[2016,-55.5,2893,167.2,1796.4,4801.1000000000004]
[2017,153.9,-1581.4,71.099999999999994,1472,115.59999999999991]
[2018,242.8,1051.0999999999999,173,2754.9,4221.8]
[2019,4197.8999999999996,1417,158.1,5252.3,11025.3]
[2020,-1399.3,2019.3,173.7,3983.8,4777.5]
["Z uwagi na występujące zaokrąglenia suma wartości składowych może różnić się od wartości agregatu."]
["Totals may not equal the sum of components due to rounding"]
[]
["Ostatnia aktualizacja - wrzesień 2021"]
["Last updated: September 2021"]

{"sheet":"Tab.16.ZIB_Doch_samochody","index":16,"n_rows":22,"n_cols":6,"rows_kept":22,"cut":false,"hidden":false,"merged":[]}
["Dochody z tytułu zagranicznych inwestycji bezpośrednich w poszczególnych obszarach związanych z produkcją pojazdów w Polsce (w mln zł)"]
["Dane z wyłączeniem podmiotów specjalnego przeznaczenia"]
["Foreign direct investment in Poland - Income accrued during the year for activities in automotive sector by region (in PLN million)"]
["Data excluding resident Special Purpose Entities"]
["Rok / Year","Baterie i akumulatory / Manufacture of batteries and accumulators / 27.2","Pojazdy / Manufacture of motor vehicles / 29.1","Nadwozia i przyczepy / Manufacture of bodies (coachwork) for motor vehicles; manufacture of trailers \nand semi-trailers / 29.2","Części / Manufacture of parts and accessories for motor vehicles / 29.3","Ogółem / Total / 6 = 2+3+4+5"]
[null,"netto /\nnet","netto /\nnet","netto /\nnet","netto /\nnet","netto /\nnet\n(6=2+3+4+6)"]
[1,2,3,4,5,6]
[2011,6.32,10.140504,13.003221000000002,18.341452999999998,47.805177999999998]
[2012,6.6818530000000003,10.694109000000001,11.217283,18.501470000000001,47.094715000000008]
[2013,5.4926269999999997,15.485019999999999,10.991597000000001,17.124225000000003,49.093468999999999]
[2014,9.5709569999999999,9.8145640000000007,16.841234999999998,13.436662999999999,49.66341899999999]
[2015,16.513582,11.591964000000001,15.361585,12.678204000000001,56.145335000000003]
[2016,22.680412,7.980105,16.890495999999999,14.924280000000001,62.475293000000001]
[2017,13.339872,9.7455600000000011,20.978905999999998,15.953698999999999,60.018037]
[2018,21.892144999999999,7.2746259999999996,15.423819999999999,12.163235,56.753825999999997]
[2019,-9.3932160000000007,10.851224,20.946422999999999,9.1779989999999998,31.582429999999999]
[2020,-8.9828729999999997,8.2968479999999989,17.524380000000001,4.1273419999999996,20.965696999999999]
["Z uwagi na występujące zaokrąglenia suma wartości składowych może różnić się od wartości agregatu."]
["Totals may not equal the sum of components due to rounding"]
[]
["Ostatnia aktualizacja - wrzesień 2021"]
["Last updated: September 2021"]

{"sheet":"Tab.17.ZIB_Stany_Position_woj","index":17,"n_rows":45,"n_cols":4,"rows_kept":45,"cut":false,"hidden":false,"merged":[]}
["Stan zobowiązań z tytułu zagranicznych inwestycji bezpośrednich w Polsce na koniec 2020 roku w podziale na regiony zgodnie z klasyfikacją NUTS2 (w mln PLN)"]
["Dane z wyłączeniem podmiotów specjalnego przeznaczenia"]
["Foreign direct investment in Poland - positions at the end of 2020 by regions at NUTS2 level (in PLN million)"]
["Data excluding resident Special Purpose Entities"]
["Regiony NUTS 2 /\nRegions at NUTS 2","Stan zobowiązań w Polsce na koniec 2019 roku /\n Foreign direct investment position in Poland at the end of 2019 year","Zmiana w 2020 roku / \nChange in 2020 year","Stan zobowiązań w Polsce na koniec 2020 roku /\n Foreign direct investment position in Poland at the end of 2020 year"]
[null,"netto /\nnet","netto /\nnet","netto /\nnet\n(4=2+3)"]
[1,2,null,3]
["Dolnośląskie",69081.2,631,69712.2]
["Kujawsko-pomorskie",14895.1,112.19999999999891,15007.3]
["Lubelskie",6586.4,85.900000000000546,6672.3]
["Lubuskie",9941.9,640.10000000000036,10582]
["Łódzkie",26826.9,132.69999999999709,26959.599999999999]
["Małopolskie",32127.4,3636.5,35763.9]
["Mazowieckie Regionalny",12252.4,681,12933.4]
["Opolskie",9085.1,237.79999999999927,9322.9]
["Podkarpackie",19986.5,905.79999999999927,20892.3]
["Podlaskie",2937.4,167.09999999999991,3104.5]
["Pomorskie",36332.9,2382.1999999999971,38715.1]
["Śląskie",95764.2,-6236.1999999999971,89528]
["Świętokrzyskie",6850,439.69999999999982,7289.7]
["Warmińsko-mazurskie",4949.8,-295.60000000000036,4654.2]
["Warszawski stołeczny",464560.7,14299.200000000012,478859.9]
["Wielkopolskie",86578.3,3622.6999999999971,90201]
["Zachodniopomorskie",14919,3443,18362]
["Ogółem",913675.1,24885.400000000023,938560.5]
["Z uwagi na występujące zaokrąglenia suma wartości składowych może różnić się od wartości agregatu."]
["Totals may not equal the sum of components due to rounding"]
[]
["Ostatnia aktualizacja - wrzesień 2021"]
["Last updated: September 2021"]
[]
[]
[]
[]
[]
[]
[]
[]
[]
[]
["Z uwagi na występujące zaokrąglenia suma wartości składowych może różnić się od wartości agregatu."]
["Totals may not equal the sum of components due to rounding"]
[]
["Ostatnia aktualizacja - wrzesień 2020"]
["Last updated: September 2020"]

{"sheet":"Tab.18.ZIB_OZE_liczba_number","index":18,"n_rows":19,"n_cols":13,"rows_kept":19,"cut":false,"hidden":false,"merged":[[4,0,5,0],[4,1,5,1],[4,2,5,2],[4,3,5,12]]}
["Liczba bezpośrednich inwestorów zagranicznych zaangażowanych w działalność związaną z wytwarzaniem energii elektrycznej ze źródeł odnawialnych  w Polsce na koniec roku w latach 2011–2020"]
["Dane z wyłączeniem podmiotów specjalnego przeznaczenia"]
["Number of immediate foreign investors involved in activities related to the production of electricity from renewable sources at the end of the year in 2011–2020"]
["Data excluding resident Special Purpose Entities"]
["Opis","Kod DSD /\nDSD code","Description","Rok / Year"]
[]
[null,null,null,2011,2012,2013,2014,2015,2016,2017,2018,2019,2020]
[1,2,3,4,5,6,7,8,9,10,11,12,13]
["Wszystkie kraje","W0","Total World",56,71,73,90,122,122,113,118,131,128]
["(w tym kraje)",null,"(including:)"]
["Niderlandy","NL","Netherlands",9,12,14,14,19,19,15,15,9,13]
["Cypr","CY","Cyprus",5,8,10,14,12,9,8,9,8,8]
["Hiszpania","ES","Spain",13,15,13,13,18,18,16,13,15,14]
["Niemcy","DE","Germany",7,7,7,11,22,21,24,28,31,30]
["Luksemburg","LU","Luxembourg",4,7,7,12,13,22,18,17,17,14]
["Dania","DK","Denmark",5,5,4,5,11,10,13,14,18,14]
["Pozostałe kraje","-","Other countries",13,17,18,21,27,23,19,22,33,35]
["Ostatnia aktualizacja - wrzesień 2021"]
["Last updated: September 2021"]

{"sheet":"Tab.19.ZIB_Stany_Position_OZE","index":19,"n_rows":23,"n_cols":5,"rows_kept":23,"cut":false,"hidden":false,"merged":[[5,0,6,0],[4,1,4,3]]}
["Stan zobowiązań z tytułu zagranicznych inwestycji bezpośrednich w Polsce w działalność związaną z wytwarzaniem energii elektrycznej ze źródeł odnawialnych na koniec roku w latach 2011–2020 (w mln PLN)"]
["Dane z wyłączeniem podmiotów specjalnego przeznaczenia"]
["Foreign direct investment in Poland in activities related to the production of electricity from renewable sources -positions at the end of the year in 2011–2020 (in PLN million)"]
["Data excluding resident Special Purpose Entities"]
[null,"Renewable Energy",null,null,"Conventional Energy"]
["Rok /\nYear","Akcje i inne formy udziałów kapitałowych /\nEquity ","Instrumenty dłużne /\nDebt instruments","Ogółem /\nTotal FDI Positions","Ogółem /\nTotal FDI Positions"]
[null,"netto /\nnet","netto /\nnet","netto /\nnet\n(4=2+3)","netto /\nnet"]
["1","2","3",4,5]
[2011,2178.1999999999998,2706.3,4884.5,3361.1]
[2012,2459.4,3106.2,5565.6,4120.6000000000004]
[2013,1314.1,3736.8,5050.8999999999996,4822.6000000000004]
[2014,1813.4,4250.6000000000004,6064,6570.3]
[2015,1887.4,5516,7403.4,5522.8]
[2016,731.7,5911.3,6643,4246.3999999999996]
[2017,926.7,4480,5406.7,-5.8]
[2018,1497.5,4974,6471.5,364.2]
[2019,2611.8000000000002,6510.1,9121.9,424.5]
[2020,3291.7,7740.4,11032,211.5]
["Z uwagi na występujące zaokrąglenia suma wartości składowych może różnić się od wartości agregatu."]
["Totals may not equal the sum of components due to rounding"]
[]
["Ostatnia aktualizacja - wrzesień 2021"]
["Last updated: September 2021"]

{"sheet":"Tab.20.ZIB_Stany_position_OZE_g","index":20,"n_rows":22,"n_cols":13,"rows_kept":22,"cut":false,"hidden":false,"merged":[[4,0,5,0],[4,1,5,1],[4,2,5,2],[4,3,5,12]]}
["Stan zobowiązań z tytułu zagranicznych inwestycji bezpośrednich w działalność związaną z wytwarzaniem energii elektrycznej ze źródeł odnawialnych w Polsce według kraju siedziby inwestora dominującego na koniec roku w latach 2011–2020 (w mln PLN) "]
["Dane z wyłączeniem podmiotów specjalnego przeznaczenia"]
["Foreign direct investment in Poland in activities related to the production of electricity from renewable sources and conventional energy  - positions at the end of the year in 2011–2020 broken down by Ultimate Investing Country (in PLN million)"]
["Data excluding resident Special Purpose Entities"]
["Opis","Kod DSD /\nDSD code","Description","Rok / Year"]
[]
[null,null,null,2011,2012,2013,2014,2015,2016,2017,2018,2019,2020]
[null,null,null,"netto /\nnet","netto /\nnet","netto /\nnet","netto /\nnet","netto /\nnet","netto /\nnet","netto /\nnet","netto /\nnet","netto /\nnet","netto /\nnet"]
[1,2,3,4,5,6,7,8,9,10,11,12,13]
["Wszystkie kraje","W0","Total World",4884.2,5565.5,5050.8999999999996,6064.3,7403.5,6643.1999999999989,5406.8,6471.4999999999982,9122,11032.000000000002]
["(w tym kraje)",null,"(including:)"]
["Hiszpania","ES","Spain",1134.9000000000001,1398.7,810,779,995.9,609.70000000000005,639.20000000000005,779,925.9,972]
["Niemcy","DE","Germany",995.1,1587.8,1877.3,2028,1853.2,1723.3,1348.9,1493.6,2396,3274.2]
["Portugalia","PT","Portugal",882.7,1066.3,984.2,1178.2,1503.2,871.7,672.5,627.29999999999995,744.2,1041.7]
["Szwecja","SE","Sweden",82.6,186.5,390.3,443.1,499.2,397.3,455,482.2,575.29999999999995,756]
["Cypr","CY","Cyprus",158.19999999999999,236.8,451.2,884.4,831.5,550.5,606.1,631.79999999999995,730.9,790.8]
["Pozostałe kraje","-","Other countries",1630.6999999999998,1089.4000000000001,537.89999999999941,751.60000000000048,1720.5000000000009,2490.6999999999989,1685.1000000000004,2457.5999999999976,3749.7000000000003,4197.300000000002]
["Z uwagi na występujące zaokrąglenia suma wartości składowych może różnić się od wartości agregatu."]
["Totals may not equal the sum of components due to rounding"]
[]
["Ostatnia aktualizacja - wrzesień 2021"]
["Last updated: September 2021"]

{"sheet":"Tab.21.ZIB_Napływ_Inflow_OZE","index":21,"n_rows":23,"n_cols":6,"rows_kept":23,"cut":false,"hidden":false,"merged":[[4,1,4,4],[5,0,6,0]]}
["Transakcje z tytułu zagranicznych inwestycji bezpośrednich w Polsce w działalność związaną z wytwarzaniem energii elektrycznej ze źródeł odnawialnych w latach 2011–2020 (w mln PLN)"]
["Dane z wyłączeniem podmiotów specjalnego przeznaczenia"]
["Foreign direct investment in activities related to the production of electricity from renewable sources and conventional energy  - transactions in 2011–2020 (in PLN million)"]
["Data excluding resident Special Purpose Entities"]
[null,"Renewable Energy",null,null,null,"Conventional Energy"]
["Rok /\nYear","Akcje i inne formy udziałów kapitałowych /\nEquity ","Reinwestycje zysków /\nReinvestment of earnings","Instrumenty dłużne /\nDebt instruments","Ogółem napływ kapitału / \nTotal FDI inflows","Ogółem napływ kapitału / \nTotal FDI inflows"]
[null,"netto /\nnet","netto /\nnet","netto /\nnet","netto /\nnet\n(5=2+3+4)","netto /\nnet"]
["1","2","3",4,5,6]
[2011,169.6,-64.5,383.8,488.9,1209.0999999999999]
[2012,304.39999999999998,50.8,966.7,1321.9,1665.5]
[2013,-880.1,60.4,1429.6,610,1655.7]
[2014,493.1,80.5,732.5,1306.0999999999999,3408.7]
[2015,650.6,79.099999999999994,1139.5999999999999,1869.2,811.3]
[2016,-44.3,-872.7,-678.1,-1595.1,-2172]
[2017,479.3,-124,-2469.6,-2114.3000000000002,-6775.4]
[2018,174.7,310.89999999999998,714.1,1199.7,-8.1999999999999993]
[2019,478.3,516.4,2837.9,3832.7,41.8]
[2020,93.1,330.9,1727.1,2151.1,-352.9]
["Z uwagi na występujące zaokrąglenia suma wartości składowych może różnić się od wartości agregatu."]
["Totals may not equal the sum of components due to rounding"]
[]
["Ostatnia aktualizacja - wrzesień 2021"]
["Last updated: September 2021"]

{"sheet":"Tab.22.ZIB_Dochody_Income_OZE","index":22,"n_rows":23,"n_cols":6,"rows_kept":23,"cut":false,"hidden":false,"merged":[[4,1,4,4],[5,0,6,0]]}
["Dochody z tytułu zagranicznych inwestycji bezpośrednich w Polsce w działalność związaną z wytwarzaniem elektrycznej ze źródeł odnawialnych w latach 2011–2020 (w mln PLN)"]
["Dane z wyłączeniem podmiotów specjalnego przeznaczenia"]
["Income on foreign direct investment in Poland in activities related to the production of electricity from renewable sources and conventional energy in 2011–2020 (in PLN million)"]
["Data excluding resident Special Purpose Entities"]
[null,"Renewable Energy",null,null,null,"Conventional Energy"]
["Rok /\nYear","Dywidendy /\nDividends","Reinwestowane zyski /\nReinvested earnings","Dochody od wierzytelności (odsetki) /\nIncome on debt (interest)","Ogółem dochody /\nTotal Direct Investment income","Ogółem dochody /Total Direct Investment Income"]
[null,"netto /\nnet","netto /\nnet","netto /\nnet","netto /\nnet\n(5=2+3+4)","netto /\nnet"]
["1","2","3",4,5,6]
[2011,32.4,-60.2,120,92.1,575.79999999999995]
[2012,42.4,50.5,168.5,261.39999999999998,614.79999999999995]
[2013,41,61.8,195.7,298.5,-405.5]
[2014,17,98.1,114.1,229.2,60]
[2015,26,76.900000000000006,121.7,224.6,-170.1]
[2016,0.4,-872.7,154.9,-717.4,-465.1]
[2017,14.3,-124,92.9,-16.8,262.10000000000002]
[2018,16,310.89999999999998,100.1,427,12.2]
[2019,47.8,516.4,145.80000000000001,710,29.4]
[2020,97.4,330.9,218.6,646.9,33.4]
["Z uwagi na występujące zaokrąglenia suma wartości składowych może różnić się od wartości agregatu."]
["Totals may not equal the sum of components due to rounding"]
[]
["Ostatnia aktualizacja - wrzesień 2021"]
["Last updated: September 2021"]

{"sheet":"Tab.23.ZIB_Dochody_Income","index":23,"n_rows":33,"n_cols":5,"rows_kept":33,"cut":false,"hidden":false,"merged":[[4,0,5,0]]}
["Dochody z tytułu zagranicznych inwestycji bezpośrednich w Polsce w latach 2000−2020 (w mln PLN)"]
["Dane z wyłączeniem podmiotów specjalnego przeznaczenia"]
["Income on foreign direct investment in Poland in 2000–2020 (in PLN million)"]
["Data excluding resident Special Purpose Entities"]
["Rok /\nYear","Dywidendy /\nDividends","Reinwestowane zyski /\nReinvested earnings","Dochody od wierzytelności (odsetki) /\nIncome on debt (interest)","Ogółem dochody /\nTotal Direct Investment income"]
[null,"netto /\nnet","netto /\nnet","netto /\nnet","netto /\nnet\n(5=2+3+4)"]
["1","2","3","4","5"]
[2000,2447,-1738,2128.051942428267,2837.051942428267]
[2001,4003,-4258,2906.675812452163,2651.675812452163]
[2002,5571,-4992,2364.7839367180336,2943.7839367180336]
[2003,6309,-328,1953.3147760426777,7934.3147760426782]
[2004,9837,22619,2140.4500714190772,34596.45007141908]
[2005,16790,10937,2107.2888757681467,29834.288875768147]
[2006,20078,17645,2772.4933384602073,40495.493338460205]
[2007,22432,25609,3481.2579654947258,51522.257965494726]
[2008,28095,-2302,4267.1887250954314,30060.188725095431]
[2009,23356,15499,4425.2317697061089,43280.231769706108]
[2010,23829,22448,4687.8247375215878,50964.824737521587]
[2011,24945,21572,5256.2,51773.2]
[2012,27518.199999999997,18254.099999999999,6258.3,52030.6]
[2013,36267.699999999997,14732.2,7234.8,58234.7]
[2014,29592.400000000001,25939.5,8595.7000000000007,64127.6]
[2015,30091.599999999999,29145.1,8270.1,67506.899999999994]
[2016,35372.9,37295.4,9281.2999999999993,81949.600000000006]
[2017,32865,39048.699999999997,9306.1,81219.8]
[2018,40221.800000000003,35161.9,9391.7999999999993,84775.5]
[2019,37274.699999999997,43786.9,8417,89478.6]
[2020,32520.7,44147.3,7594.4,84262.399999999994]
["Z uwagi na występujące zaokrąglenia suma wartości składowych może różnić się od wartości agregatu."]
["Totals may not equal the sum of components due to rounding"]
[]
["Ostatnia aktualizacja - wrzesień 2021"]
["Last updated: September 2021"]

{"sheet":"Tab.24.ZIB_Doch_UIC_IIC","index":24,"n_rows":32,"n_cols":7,"rows_kept":32,"cut":false,"hidden":false,"merged":[]}
["Dochody z tytułu zagranicznych inwestycji bezpośrednich w Polsce w 2020 roku w podziale geograficznym według kraju siedziby podmiotu dominującego i kraju siedziby inwestora bezpośredniego (w mln PLN)"]
["Dane z wyłączeniem podmiotów specjalnego przeznaczenia"]
["Foreign direct investment in Poland - income in 2020 broken down by Ultimate Investing Country and Immediate Investing Country (in PLN million)"]
["Data excluding resident Special Purpose Entities"]
["Opis","Kod DSD / \nDSD code","Description","Według kraju siedziby podmiotu dominującego /\nAccording to Ultimate Investing Country","% ogółem /\n% total","Według kraju siedziby inwestora /\nAccording to Immediate Investing Country","% ogółem /\n% total"]
[null,null,null,"netto /\nnet",null,"netto /\nnet"]
[1,2,3,4,5,6,7]
["Niemcy","DE","Germany",18756.346361787553,{"$f":"ROUND((D8/$D$27)*100,1)","v":22.3},16270.8,{"$f":"ROUND((F8/$F$27)*100,1)","v":19.3}]
["Stany Zjednoczone","US","United States",10769.257985303801,{"$f":"ROUND((D9/$D$27)*100,1)","v":12.8},1804,{"$f":"ROUND((F9/$F$27)*100,1)","v":2.1}]
["Niderlandy","NL","Netherlands",7079.2080322127631,8.4,22338.6,26.5]
["Francja","FR","France",5905.1012289565233,7,6030.6,7.2]
["Wielka Brytania","GB","United Kingdom",4546.1776806577745,5.4,3344.5,4]
["Portugalia","PT","Portugal",3261.0040662203028,3.9,164.6,0.2]
["Hiszpania","ES","Spain",1805.6458507420941,2.1,1622.6,1.9]
["Włochy","IT","Italy",2481.3759371594733,2.9,2470.6999999999998,2.9]
["Szwajcaria","CH","Switzerland",2441.2111928861541,2.9,3704.9,4.4000000000000004]
["Szwecja","SE","Sweden",2224.0858882692633,2.6,2029.8,2.4]
["Japonia","JP","Japan",2185.4923809357319,2.6,192.1,0.2]
["Polska","PL","Poland",2266.8038925697369,2.7,0,0]
["Austria","AT","Austria",1463.1161978684102,1.7,1402.9,1.7]
["Dania","DK","Denmark",1685.7408317745574,2,1797.4,2.1]
["Finlandia","FI","Finland",1331.2304972349934,1.6,954.8,1.1000000000000001]
["Belgia","BE","Belgium",1054.4963912149128,1.3,1658.5,2]
["Luksemburg","LU","Luxembourg",-1323.2761102273191,-1.6,11863.3,14.1]
["Kraj nieznany","W190","World not allocated",10762.08921676602,12.8,0,0]
["Pozostałe kraje","-","Other countries",5566.8924776672293,6.6,6612.2000000000116,7.8]
["Wszystkie kraje","W0","Total World",84262,100,84262,100]
["Z uwagi na występujące zaokrąglenia suma wartości składowych może różnić się od wartości agregatu."]
["Totals may not equal the sum of components due to rounding"]
[]
["Ostatnia aktualizacja - wrzesień 2021"]
["Last updated: September 2021"]

{"sheet":"Tab.25.ZIB_Dochody_Income_geo","index":25,"n_rows":48,"n_cols":7,"rows_kept":48,"cut":false,"hidden":false,"merged":[[4,0,5,0],[4,1,5,1],[4,2,5,2]]}
["Dochody z tytułu zagranicznych inwestycji bezpośrednich w Polsce w 2020 roku w podziale geograficznym (w mln PLN)"]
["Dane z wyłączeniem podmiotów specjalnego przeznaczenia"]
["Income on foreign direct investment in Poland in 2020 brokendown by geography (in PLN million)"]
["Data excluding resident Special Purpose Entities"]
["Opis","Kod DSD /\nDSD code","Description","Dywidendy / \nDividends","Reinwestowane zyski / Reinvested earnings","Dochody od wierzytelności (odsetki) /\n Income on debt (interest)","Ogółem dochody / \nTotal Direct Investment income"]
[null,null,null,"netto /\nnet","netto /\nnet","netto /\nnet","netto /\nnet\n(7=4+5+6)"]
["1","2","3","4","5",6,7]
["Wszystkie kraje","W0","Total World",32520.7,44147.3,7594.4,84262.399999999994]
["(w tym kraje)","","including:","","","",""]
["Niderlandy","NL","Netherlands",10715.6,9902.4,1720.6,22338.6]
["Niemcy","DE","Germany",6725.5,8920.6,624.6,16270.8]
["Luksemburg","LU","Luxembourg",3661.5,6834.1,1367.8,11863.3]
["Francja","FR","France",2450.8000000000002,2745.7,834.1,6030.6]
["Szwajcaria","CH","Switzerland",1603.8,1939.8,161.30000000000001,3704.9]
["Cypr","CY","Cyprus",526.29999999999995,2564.4,556.20000000000005,3647]
["Wielka Brytania","GB","United Kingdom",833.9,2239.4,271.3,3344.5]
["Włochy","IT","Italy",1122,1293.0999999999999,55.6,2470.6999999999998]
["Szwecja","SE","Sweden",409.9,1523.2,96.7,2029.8]
["Stany Zjednoczone Ameryki Północnej","US","United States",372.8,1039.8,391.4,1804]
["Dania","DK","Denmark",357.3,1376.1,64,1797.4]
["Belgia","BE","Belgium",567.70000000000005,730.9,359.9,1658.5]
["Hiszpania","ES","Spain",451.4,1011,160.19999999999999,1622.6]
["Austria","AT","Austria",1005.4,47.4,350.1,1402.9]
["Republika Czeska","CZ","Czech Republic",256.2,494.2,245.8,996.3]
["Finlandia","FI","Finland",614.20000000000005,269,71.7,954.8]
["Irlandia","IE","Ireland",57.4,700.3,-51.3,706.5]
["Norwegia","NO","Norway",260.3,212.2,34.6,507.1]
["Łotwa","LV","Latvia",66.400000000000006,134.30000000000001,-0.3,200.3]
["Japonia","JP","Japan",25.6,160.30000000000001,6.3,192.1]
["Portugalia","PT","Portugal",61.9,102.1,0.6,164.6]
["Republika Korei (Korea Południowa)","KR","Korea, Republic of (South Korea)",38.1,-500.2,26.2,-435.9]
["(w tym strefy ekonomiczne)","","including economic areas:","","","",""]
["Unia Europejska (27 krajów)","B6","EU27",29292.5,38583,6662.5,74537.899999999994]
["Strefa Euro (19 krajów)","I8","EA-19",28140.799999999999,35231.9,6166,69538.7]
["Europejska Strefa Wolnego Handlu (EFTA)","R2","EFTA",1867.1,2195.4,199.6,4262.1000000000004]
["Organizacja Współpracy Gospodarczej i Rozwoju (OECD)","P6","OECD",31890.799999999999,41297.1,6980.5,80168.3]
["Północnoamerykańska Strefa Wolnego Handlu (NAFTA)","R3","NAFTA",395,1032.5999999999999,362.2,1789.8]
["CIS","R14","CIS countries",16.2,79.5,-27.6,68.2]
["ASEAN","R4","ASEAN countries",5.3,-37.799999999999997,14.8,-17.600000000000001]
["OPEC","R5","OPEC countries",":",66.099999999999994,3.2,69.2]
["Ameryka Łacińska","A8","Latin America",-0.4,6.2,1,6.8]
["Kraje Afrykańskie, Karaibskie i Pacyfiku (ACP)","R6","ACP countries",":",24.7,0.2,24.9]
["Poza Unią Europejską","D6","Extra EU27",3228.2,5564.3,931.9,9724.4]
["Z uwagi na występujące zaokrąglenia suma wartości składowych może różnić się od wartości agregatu."]
["Totals may not equal the sum of components due to rounding"]
[]
["Ostatnia aktualizacja - wrzesień 2021"]
["Last updated: September 2021"]

{"sheet":"Tab.26.ZIB_Dochody_Income_act","index":26,"n_rows":31,"n_cols":7,"rows_kept":31,"cut":false,"hidden":false,"merged":[[4,0,5,0],[4,1,5,1],[4,2,5,2]]}
["Dochody z tytułu zagranicznych inwestycji bezpośrednich w Polsce w 2020 roku w podziale na rodzaje działalności gospodarczej (w mln PLN)"]
["Dane z wyłączeniem podmiotów specjalnego przeznaczenia"]
["Income on foreign direct investment in Poland in 2020 broken down by economic activity (in PLN million)"]
["Data excluding resident Special Purpose Entities"]
["Opis","Kod DSD /\nDSD code","Description","Dywidendy / \nDividends","Reinwestowane zyski /\nReinvested earnings","Dochody od wierzytelności (odsetki) / \nIncome on debt (interest)","Ogółem dochody / \nTotal Direct Investment income"]
[null,null,null,"netto /\nnet","netto /\nnet","netto /\nnet","netto /\nnet\n(7=4+5+6)"]
["1","2","3","4","5",6,7]
["Ogółem","FDI_T","Total",32520.7,44147.3,7594.4,84262.399999999994]
["(w tym)","","including:","","","",""]
["Rolnictwo, leśnictwo i rybactwo","A","Agriculture, forestry and fishing",108.9,-7.9,70.7,171.8]
["Górnictwo i wydobywanie","B","Mining and quarrying",52.9,-243.5,45.9,-144.69999999999999]
["Przetwórstwo przemysłowe","C","Manufacturing",14045.5,13552.3,1149.3,28747.200000000001]
["Wytwarzanie i zaopatrywanie w energię elektryczną, gaz, parę wodną i powietrze do układów klimatyzacyjnych","D35","Electricity,Gas, Steam and Air Conditioning Supply",352.7,970.4,596.6,1919.7]
["Dostawa wody; gospodarowanie ściekami i odpadami oraz działalność związana z rekultywacją","E","Water Supply; Sewerage, Waste Management and Remediation Activities",109.5,290,10,409.5]
["Budownictwo","F","Construction",1460.8,292.89999999999998,1135.8,2889.5]
["Usługi (łącznie)","GTU","Total Services",15725.8,29293.1,4584.5,49603.4]
["(w tym)","","including:","","","",""]
["Handel hurtowy i detaliczny; naprawa pojazdów samochodowych i motocykli","G","Wholesale and Retail Trade; Repair of Motor Vehicleas and Motorcycles",8439.4,9103.7000000000007,238.8,17781.900000000001]
["Transport i gospodarka magazynowa","H","Transportation and Storage",923.4,1591.6,59.5,2574.5]
["Działalność związana z zakwaterowaniem i usługami gastronomicznym","I","Accomodation and Food Service Activities",25.1,-403.7,19.7,-359]
["Informacja i komunikacja","J","Information and Communication",2413.5,4131.5,525.79999999999995,7070.8]
["Działalność finansowa i ubezpieczeniowa","K","Financial and Insurance Activities",1436.1,7795.1,269.3,9500.5]
["Działalność związana z obsługą rynku nieruchomości","L","Real Estate Activities",1100.8,2495,2137.9,5733.7]
["Działalność profesjonalna, naukowa i techniczna","M","Professional, Scientific and Technical Activities",895.3,3816.1,1016.5,5727.9]
["Działalność w zakresie usług administrowania i działalność wspierająca","N","Administrative and Support Service Activities",294.89999999999998,654.70000000000005,213.1,1162.7]
["Opieka zdrowotna i pomoc społeczna","Q","Human Health and Social Work Activities",44.7,356.9,29.4,430.9]
["Z uwagi na występujące zaokrąglenia suma wartości składowych może różnić się od wartości agregatu."]
["Totals may not equal the sum of components due to rounding"]
[]
["Ostatnia aktualizacja - wrzesień 2021"]
["Last updated: September 2021"]

{"sheet":"Tab.27.ZIB_Deko_Doch_Deco_Inc","index":27,"n_rows":32,"n_cols":4,"rows_kept":32,"cut":false,"hidden":false,"merged":[]}
["Dekompozycja dochodów z tytułu zagranicznych inwestycji bezpośrednich w Polsce w rozliczeniu na przyczyny zmian w latach 2001-2020 (w mln PLN)"]
["Dane z wyłączeniem podmiotów specjalnego przeznaczenia"]
["Income on foreign direct investment in Poland - decomposition into causes of changes in 2001-2020 (in PLN million)"]
["Data excluding resident Special Purpose Entities"]
["Rok /\nYear","Zmiany\nzasobu kapitału / \nCapital positions changes","Zmiany dochodowości /\nProfitability changes","Zmiana dochodu / \nIncome changes"]
[null,"netto /\nnet","netto /\nnet","netto /\nnet\n(4=2+3)"]
[1,2,3,4]
[2001,456.62628898776558,-642.00241896386956,-185.37612997610404]
[2002,338.12821916663302,-46.020094900762388,292.10812426587063]
[2003,459.47036025085384,4531.0604790737916,4990.5308393246451]
[2004,1572.6691726405315,25089.466122735867,26662.1352953764]
[2005,4140.5214140315311,-8902.6826096824643,-4762.1611956509332]
[2006,5870.8606538891599,4790.3438088028979,10661.204462692058]
[2007,7597.6153078499829,3429.1493191845384,11026.764627034521]
[2008,5064.3303678589846,-26526.399608258278,-21462.069240399294]
[2009,2568.1458136728616,10651.897230937815,13220.043044610677]
[2010,7159.9702967251797,524.62267109029926,7684.5929678154789]
[2011,534.54364219068646,273.83162028772369,808.37526247841015]
[2012,5046.6025841424826,-4789.2025841424811,257.40000000000146]
[2013,6207.7052636904655,-3.6052636904669271,6204.0999999999985]
[2014,4342.0570795674903,1550.8429204325112,5892.9000000000015]
[2015,-1397.5995599396804,4776.8995599396758,3379.2999999999956]
[2016,5882.3877248134731,8560.3122751865376,14442.700000000012]
[2017,4994.0287960193409,-5723.8287960193438,-729.80000000000291]
[2018,2534.2050041919483,1021.4949958080488,3555.6999999999971]
[2019,4982.8287376815451,-279.32873768154514,4703.5]
[2020,2437.1624417872877,-7654.1624417872881,-5217]
["Z uwagi na występujące zaokrąglenia suma wartości składowych może różnić się od wartości agregatu."]
["Totals may not equal the sum of components due to rounding"]
[]
["Ostatnia aktualizacja - wrzesień 2021"]
["Last updated: September 2021"]

{"sheet":"Tab.28.ZIB_Stopa_dochodowości","index":28,"n_rows":14,"n_cols":12,"rows_kept":14,"cut":false,"hidden":false,"merged":[]}
["Wskaźnik dochodowości w podziale na rodzaje działalności gospodarczej podmiotów bezpośredniego inwestowania w Polsce w latach 2012-2020 (w %)"]
["Dane z wyłączeniem podmiotów specjalnego przeznaczenia"]
["Return on foreign direct investment in Poland broken down by economic activity in 2012−2020 (in %)"]
["Data excluding resident Special Purpose Entities"]
["Opis","Kod DSD /\nDSD code","Opis / \nDescription",2012,2013,2014,2015,2016,2017,2018,2019,2020]
[1,2,3,4,5,6,7,8,9,10,11,12]
["Ogółem","FDI_T","Total",9.4,9.4,9.3000000000000007,9.1,11.29,10.3,10.130000000000001,10.17,9.2200000000000006]
["w tym:",null,"including:"]
["Przetwórstwo przemysłowe","C","Manufacturing",10.9,10.8,12.7,13,13.23,12.79,12.08,11.96,9.5399999999999991]
["Handel hurtowy i detaliczny; naprawa pojazdów samochodowych i motocykli","G","Wholesale and Retail Trade; Repair of Motor Vehicleas and Motorcycles",10,10.3,11.1,10.3,12.11,13.28,14.5,14.08,12.67]
["Działalność finansowa i ubezpieczeniowa","K","Financial and Insurance Activities",8.3000000000000007,5.6,6.5,5.8,7.56,6.4,6.65,7.91,7.04]
["Działalność związana z obsługą rynku nieruchomości","L","Real Estate Activities",4.7,7.4,6.1,6.4,11.3,5.22,8.27,7.08,6.15]
["Ostatnia aktualizacja - wrzesień 2021"]
["Last updated: September 2021"]

{"sheet":"Tab.29.ZIB_doch-op_fin_dł","index":29,"n_rows":16,"n_cols":3,"rows_kept":16,"cut":false,"hidden":false,"merged":[]}
["Oprocentowanie finansowania dłużnymi instrumentami finansowymi w zagranicznych inwestycjach bezpośrednich w Polsce w latach 2011-2020 (w %)"]
["Interest rate on debt instruments in foreign direct investment in Poland in 2011 – 2020 (in %)"]
["Rok / \nYear","% od zagranicznych inwestorów  bezpośrednich / \n% from foregin direct investors","% od banków  krajowych / \nfrom Polish banks"]
[1,2,3]
["2011",4,5]
["2012",4,5]
["2013",5,2]
["2014",5,3]
["2015",5,3]
["2016",5,3]
["2017",5,3]
["2018",4,3]
["2019",4,3]
["2020",4,2]
["Ostatnia aktualizacja - wrzesień 2021"]
["Last updated: September 2021"]

{"sheet":"Tab.30.ZIB_doch-op_findłrd","index":30,"n_rows":12,"n_cols":3,"rows_kept":12,"cut":false,"hidden":false,"merged":[]}
["Średnioroczne oprocentowanie finansowania dłużnymi instrumentami finansowym w zagranicznych inwestycjach bezpośrednich w Polsce w latach 2011-2020 w podziale na rodzaje działalności gospodarczej (w%)"]
["Annual average interest rate on debt instruments in foreign direct investment in Poland in 2011 – 2020 by economic activity (in %)"]
["Kod DSD / \nDSD code","Opis /  \nDescription","Procent /\nPercent"]
[1,2,3]
["H","Transport i gospodarka magazynowa",10]
["K","Działalność finansowa i ubezpieczeniowa",6.7]
["M","Działalność profesjonalna, naukowa i techniczna ",4.4000000000000004]
["J","Informacja i komunikacja",4]
["G","Handel hurtowy i detaliczny; naprawa pojazdów samochodowych i motocykli",2.5]
["-","Pozostałe sekcje",3.9]
["Ostatnia aktualizacja - wrzesień 2021"]
["Last updated: September 2021"]

{"sheet":"Tab.31.PIB_Odpływ_Outflow","index":31,"n_rows":33,"n_cols":5,"rows_kept":33,"cut":false,"hidden":false,"merged":[[4,0,5,0]]}
["Transakcje z tytułu polskich inwestycji bezpośrednich za granicą w latach 2000−2020 (w mln PLN)"]
["Dane z wyłączeniem podmiotów specjalnego przeznaczenia"]
["Polish direct investment abroad - transactions in 2000–2020 (in PLN million)"]
["Data excluding resident Special Purpose Entities"]
["Rok /\nYear","Akcje i inne formy udziałow kapitałowych /\nEquity ","Reinwestycje zysków /\nReinvestment of earnings","Instrumenty dłużne /\nDebt instruments","Ogółem odpływ kapitału / \nTotal FDI outflows"]
[null,"netto /\nnet","netto /\nnet","netto /\nnet","netto /\nnet\n(5=2+3+4)"]
["1",2,3,4,5]
[2000,488,-52,-362,74]
[2001,-196,37,-704.0872983004723,-863.0872983004723]
[2002,1115,-297,-263.04149635709376,554.95850364290618]
[2003,404,-44,-1528.493470295577,-1168.493470295577]
[2004,822.54899999999998,83,-298.88382570219414,606.66517429780583]
[2005,4069.7709999999997,182,105.57585486375865,4357.3468548637584]
[2006,11702.106,1806,-1537.804817472118,11970.301182527881]
[2007,5995.1350000000002,-229,-1115.4712902214633,4650.6637097785369]
[2008,2858.877,576,1042.9118975080651,4477.788897508065]
[2009,10046.313,-4304,-106.21509312312992,5636.0979068768702]
[2010,2504.8084190000009,921,15109.78490687687,18535.593325876871]
[2011,1940.1999999999989,636.20000000000005,464.8,3041.1999999999989]
[2012,5573.8000000000011,4215,-341.6,9447.2000000000007]
[2013,4029.9,-671.8,-4784.2,-1426.0999999999995]
[2014,17480.8,1609.6,-9948.2000000000007,9142.2000000000007]
[2015,16469.2,21.8,2339.8000000000002,18830.7]
[2016,32955.300000000003,583,12197.9,45736.2]
[2017,909.6,3113.3,4176.3,8199.2000000000007]
[2018,-1562.6,4777.2,3.5,3218.2]
[2019,-7813,5589.2,9342.2999999999993,7118.5]
[2020,-341.5,2170.5,3221.9,5050.8999999999996]
["Z uwagi na występujące zaokrąglenia suma wartości składowych może różnić się od wartości agregatu."]
["Totals may not equal the sum of components due to rounding"]
[]
["Ostatnia aktualizacja - wrzesień 2021"]
["Last updated: September 2021"]

{"sheet":"Tab.32.PIB_Odpływ_Outflow_geo","index":32,"n_rows":48,"n_cols":7,"rows_kept":48,"cut":false,"hidden":false,"merged":[[4,0,5,0],[4,1,5,1],[4,2,5,2]]}
["Transakcje z tytułu polskich inwestycji bezpośrednich za granicą w 2020 roku w podziale geograficznym (w mln PLN)"]
["Dane z wyłączeniem podmiotów specjalnego przeznaczenia"]
["Polish direct investment abroad - transactions in 2020 broken down by geography (in PLN million)"]
["Data excluding resident Special Purpose Entities"]
["Opis","Kod DSD /\nDSD code","Description","Akcje i inne formy udziałow kapitałowych /\nEquity ","Reinwestycje zysków /\nReinvestment of earnings","Instrumenty dłużne /\nDebt instruments","Ogółem odpływ kapitału / \nTotal FDI outflows"]
[null,null,null,"netto /\nnet","netto /\nnet","netto /\nnet","netto /\nnet\n(7=4+5+6)"]
["1","2","3","4","5",6,7]
["Wszystkie kraje","W0","Total World",-341.5,2170.5,3221.9,5050.8999999999996]
["(w tym kraje)","","including:","","","",""]
["Szwecja","SE","Sweden",-3.9,83.7,1491.3,1571.1]
["Cypr","CY","Cyprus",11.4,1163.4000000000001,-29.4,1145.3]
["Republika Czeska","CZ","Czech Republic",293.39999999999998,312.7,58.7,664.8]
["Niemcy","DE","Germany",-187.1,94.9,733.4,641.20000000000005]
["Luksemburg","LU","Luxembourg",144.5,-23.3,509.7,630.79999999999995]
["Wielka Brytania","GB","United Kingdom",24.7,-40.5,624.20000000000005,608.5]
["Tajlandia","TH","Thailand",1.1000000000000001,643.4,-130.9,513.6]
["Zjednoczone Emiraty Arabskie","AE","United Arab Emirates",16,207.6,116.1,339.7]
["Stany Zjednoczone Ameryki Północnej","US","United States",19.399999999999999,45.1,265.60000000000002,330.1]
["Szwajcaria","CH","Switzerland",-1,268.8,17.2,285]
["Federacja Rosyjska","RU","Russian Federation",-106.7,52.5,316,261.89999999999998]
["Norwegia","NO","Norway",33.5,-546.6,765.9,252.8]
["Słowacja","SK","Slovakia",2.9,425.1,-193,235]
["Ukraina","UA","Ukraine",-123.9,292.5,46.4,215]
["Niderlandy","NL","Netherlands",-259.2,-21.2,468.6,188.2]
["Chile","CL","Chile",":",-2.9,130.19999999999999,127.4]
["Dania","DK","Denmark",-5.2,5.9,-195.6,-194.9]
["Hiszpania","ES","Spain",102.5,-57.2,-368.5,-323.2]
["Francja","FR","France",87.8,-49.5,-503.5,-465.1]
["Meksyk","MX","Mexico",0.3,-103.9,-434,-537.6]
["Litwa","LT","Lithuania",7.4,-551.29999999999995,-11.1,-554.9]
["Węgry","HU","Hungary",-463.7,-911.7,18.7,-1356.7]
["(w tym strefy ekonomiczne)","","including economic areas:","","","",""]
["Unia Europejska (27 krajów)","B6","EU27",-339.8,1095.7,1507.1,2263]
["Strefa Euro (19 krajów)","I8","EA-19",-255.4,1282.5999999999999,537.6,1564.7]
["Europejska Strefa Wolnego Handlu (EFTA)","R2","EFTA",32.5,-277.7,786,540.70000000000005]
["Organizacja Współpracy Gospodarczej i Rozwoju (OECD)","P6","OECD",-103,-906.3,3375.5,2366.3000000000002]
["Północnoamerykańska Strefa Wolnego Handlu (NAFTA)","R3","NAFTA",27.4,-53.3,-134.6,-160.5]
["CIS","R14","CIS countries",-238.3,375.7,505.3,642.70000000000005]
["ASEAN","R4","ASEAN countries",2.2999999999999998,644.79999999999995,-148.69999999999999,498.4]
["OPEC","R5","OPEC countries",16,209.3,109.8,335.1]
["Ameryka Łacińska","A8","Latin America",0.3,-98.9,-381.2,-479.9]
["Kraje Afrykańskie, Karaibskie i Pacyfiku (ACP)","R6","ACP countries",-2.2000000000000002,23.4,33.1,54.3]
["Poza Unią Europejską","D6","Extra EU27",-1.7,1074.8,1714.8,2787.9]
["Z uwagi na występujące zaokrąglenia suma wartości składowych może różnić się od wartości agregatu."]
["Totals may not equal the sum of components due to rounding"]
[]
["Ostatnia aktualizacja - wrzesień 2021"]
["Last updated: September 2021"]

{"sheet":"Tab.33.PIB_Odpływ_Outflow_act","index":33,"n_rows":31,"n_cols":7,"rows_kept":31,"cut":false,"hidden":false,"merged":[[4,0,5,0],[4,1,5,1],[4,2,5,2]]}
["Transakcje z tytułu polskich inwestycji bezpośrednich za granicą w 2020 roku w podziale na rodzaje działalności gospodarczej (w mln PLN)"]
["Dane z wyłączeniem podmiotów specjalnego przeznaczenia"]
["Polish direct investment abroad - transactions in 2020 broken down by economic activity (in PLN million)"]
["Data excluding resident Special Purpose Entities"]
["Opis","Kod DSD /\nDSD code","Description","Akcje i inne formy udziałow kapitałowych /\nEquity ","Reinwestycje zysków /\nReinvestment of earnings","Instrumenty dłużne /\nDebt instruments","Ogółem odpływ kapitału / \nTotal FDI outflows"]
[null,null,null,"netto /\nnet","netto /\nnet","netto /\nnet","netto /\nnet\n(7=4+5+6)"]
["1","2","3","4","5",6,7]
["Ogółem","FDI_T","Total",-341.5,2170.5,3221.9,5050.8999999999996]
["(w tym)","","including:","","","",""]
["Rolnictwo, leśnictwo i rybactwo","A","Agriculture, forestry and fishing",2.1,10.8,4.8,17.7]
["Górnictwo i wydobywanie","B","Mining and quarrying",0,-641,544.6,-96.4]
["Przetwórstwo przemysłowe","C","Manufacturing",250.5,774.5,908.2,1933.2]
["Wytwarzanie i zaopatrywanie w energię elektryczną, gaz, parę wodną i powietrze do układów klimatyzacyjnych","D35","Electricity,Gas, Steam and Air Conditioning Supply",22.5,129.9,26.5,178.9]
["Dostawa wody; gospodarowanie ściekami i odpadami oraz działalność związana z rekultywacją","E","Water Supply; Sewerage, Waste Management and Remediation Activities",47.6,16.8,-15.5,49]
["Budownictwo","F","Construction",4.5,35.299999999999997,-111.9,-72.2]
["Usługi (łącznie)","GTU","Total Services",-712.6,1792.8,1609.4,2689.6]
["(w tym)","","including:","","","",""]
["Handel hurtowy i detaliczny; naprawa pojazdów samochodowych i motocykli","G","Wholesale and Retail Trade; Repair of Motor Vehicleas and Motorcycles",-332.1,464.9,285,417.8]
["Transport i gospodarka magazynowa","H","Transportation and Storage",-56,25.2,38.9,8.1999999999999993]
["Działalność związana z zakwaterowaniem i usługami gastronomicznym","I","Accomodation and Food Service Activities",46.4,-303.39999999999998,14.3,-242.8]
["Informacja i komunikacja","J","Information and Communication",36.1,431.2,-42.8,424.5]
["Działalność finansowa i ubezpieczeniowa","K","Financial and Insurance Activities",13.2,615.1,1418,2046.4]
["Działalność związana z obsługą rynku nieruchomości","L","Real Estate Activities",38.6,-541.5,275.10000000000002,-227.8]
["Działalność profesjonalna, naukowa i techniczna","M","Professional, Scientific and Technical Activities",-268.8,734,419,884.2]
["Działalność w zakresie usług administrowania i działalność wspierająca","N","Administrative and Support Service Activities",-227.3,199.4,-710.1,-738]
["Opieka zdrowotna i pomoc społeczna","Q","Human Health and Social Work Activities",25.5,0.5,-103.6,-77.5]
["Z uwagi na występujące zaokrąglenia suma wartości składowych może różnić się od wartości agregatu."]
["Totals may not equal the sum of components due to rounding"]
[]
["Ostatnia aktualizacja - wrzesień 2021"]
["Last updated: September 2021"]

{"sheet":"Tab.34.PIB_Stany_Position","index":34,"n_rows":33,"n_cols":4,"rows_kept":33,"cut":false,"hidden":false,"merged":[[4,0,5,0]]}
["Stan należności z tytułu polskich inwestycji bezpośrednich za granicą na koniec roku w latach 2000−2020 (w mln PLN)"]
["Dane z wyłączeniem podmiotów specjalnego przeznaczenia"]
["Polish direct investment abroad - positions at the end of the year in 2000–2020 (in PLN million)"]
["Data excluding resident Special Purpose Entities"]
["Rok /\nYear","Akcje i inne formy udziałów kapitałowych /\nEquity ","Instrumenty dłużne /\nDebt instruments","Ogółem /\nTotal FDI Positions"]
[null,"netto /\nnet","netto /\nnet","netto /\nnet\n(4=2+3)"]
["1","2","3",4]
[2000,3605,-2495.4256560000003,1109.5743439999997]
[2001,3982,-2768.4323600000002,1213.5676399999998]
[2002,4852,-3195.3981020000001,1656.6018979999999]
[2003,6060,-4629.6061500000005,1430.3938499999995]
[2004,5905.549,-3817.5605480000004,2087.9884519999996]
[2005,9324.3189999999995,-3530.7988000000005,5793.520199999999]
[2006,17269.249,-4457.1179940000002,12812.131006]
[2007,21924.995999999999,-4199.8902520000011,17725.105747999998]
[2008,28387.232,-4085.8150139999998,24301.416986]
[2009,36753.445,-3963.982892,32789.462108]
[2010,43566.233098999997,5064.4194339999958,48630.652532999993]
[2011,56053.899999999994,8629.2999999999993,64683.199999999997]
[2012,72050.8,8855.2999999999993,80906.100000000006]
[2013,84492.099999999991,-984.4,83507.7]
[2014,101476.9,-4128.5,97348.4]
[2015,108624.3,-1374.7,107249.60000000001]
[2016,104538.3,11955.8,116494.2]
[2017,92878.2,8742,101620.3]
[2018,83253.2,9304.1,92557.3]
[2019,84091.9,18216,102307.9]
[2020,87072.2,18674.900000000001,105747.1]
["Z uwagi na występujące zaokrąglenia suma wartości składowych może różnić się od wartości agregatu."]
["Totals may not equal the sum of components due to rounding"]
[]
["Ostatnia aktualizacja - wrzesień 2021"]
["Last updated: September 2021"]

{"sheet":"Tab.35.PIB_Stany_Position_geo","index":35,"n_rows":48,"n_cols":6,"rows_kept":48,"cut":false,"hidden":false,"merged":[[4,0,5,0],[4,1,5,1],[4,2,5,2]]}
["Stan należności z tytułu polskich inwestycji bezpośrednich za granicą na koniec 2020 roku w podziale geograficznym (w mln PLN)"]
["Dane z wyłączeniem podmiotów specjalnego przeznaczenia"]
["Polish direct investment abroad - positions at the end of 2020 broken down by geography (in PLN million)"]
["Data excluding resident Special Purpose Entities"]
["Opis","Kod DSD /\nDSD code","Description","Akcje i inne formy udziałow kapitałowych /\nEquity ","Instrumenty dłużne /\nDebt instruments","Ogółem / \nTotal FDI Positions"]
[null,null,null,"netto /\nnet","netto /\nnet","netto /\nnet\n(6=4+5)"]
["1","2","3","4",5,6]
["Wszystkie kraje","W0","Total World",87072.2,18674.900000000001,105747.1]
["(w tym kraje)","","including:","","",""]
["Luksemburg","LU","Luxembourg",7435.4,8601.2999999999993,16036.7]
["Cypr","CY","Cyprus",13304.1,-20.7,13283.3]
["Republika Czeska","CZ","Czech Republic",11245.8,787,12032.8]
["Niemcy","DE","Germany",4221.2,3463,7684.2]
["Kanada","CA","Canada",2085.8000000000002,4017.7,6103.6]
["Wielka Brytania","GB","United Kingdom",3589.3,1636.1,5225.3999999999996]
["Węgry","HU","Hungary",4034.7,630.20000000000005,4664.8]
["Niderlandy","NL","Netherlands",5290.3,-983.6,4306.7]
["Litwa","LT","Lithuania",3591.5,662.3,4253.8]
["Rumunia","RO","Romania",2208.1999999999998,1648,3856.2]
["Norwegia","NO","Norway",1512.2,2074,3586.2]
["Malta","MT","Malta",3131.1,-12.3,3118.7]
["Federacja Rosyjska","RU","Russian Federation",1714.4,1144.7,2859.1]
["Słowacja","SK","Slovakia",2541.3000000000002,227.4,2768.7]
["Chile","CL","Chile",-11.2,2441.9,2430.6999999999998]
["Szwajcaria","CH","Switzerland",2445.3000000000002,-46.8,2398.4]
["Stany Zjednoczone Ameryki Północnej","US","United States",1056.5,604.20000000000005,1660.7]
["Austria","AT","Austria",1621,17.100000000000001,1638.1]
["Hiszpania","ES","Spain",1623.5,-71,1552.5]
["Ukraina","UA","Ukraine",1843.4,-576.70000000000005,1266.7]
["Izrael","IL","Israel",1258.3,-10,1248.3]
["Szwecja","SE","Sweden",864.2,-9424.6,-8560.4]
["(w tym strefy ekonomiczne)","","including economic areas:","","",""]
["Unia Europejska (27 krajów)","B6","EU27",66191.7,3798.6,69990.3]
["Strefa Euro (19 krajów)","I8","EA-19",46924.800000000003,9469.9,56394.6]
["Europejska Strefa Wolnego Handlu (EFTA)","R2","EFTA",3957.5,2020,5977.4]
["Organizacja Współpracy Gospodarczej i Rozwoju (OECD)","P6","OECD",58612,13528.9,72141]
["Północnoamerykańska Strefa Wolnego Handlu (NAFTA)","R3","NAFTA",3143.3,4345.8,7489.1]
["CIS","R14","CIS countries",4025.7,955.4,4981.1000000000004]
["ASEAN","R4","ASEAN countries",895.1,-136.1,759]
["OPEC","R5","OPEC countries",800.6,249.1,1049.7]
["Ameryka Łacińska","A8","Latin America",-25.5,2847.8,2822.3]
["Kraje Afrykańskie, Karaibskie i Pacyfiku (ACP)","R6","ACP countries",649.79999999999995,596.70000000000005,1246.5999999999999]
["Poza Unią Europejską","D6","Extra EU27",20880.400000000001,14876.4,35756.800000000003]
["Z uwagi na występujące zaokrąglenia suma wartości składowych może różnić się od wartości agregatu."]
["Totals may not equal the sum of components due to rounding"]
[]
["Ostatnia aktualizacja - wrzesień 2021"]
["Last updated: September 2021"]

{"sheet":"Tab.36.PIB_Stany_Positon_act","index":36,"n_rows":31,"n_cols":6,"rows_kept":31,"cut":false,"hidden":false,"merged":[[4,0,5,0],[4,1,5,1],[4,2,5,2]]}
["Stan należności z tytułu polskich inwestycji bezpośrednich za granicą na koniec 2020 roku w podziale na rodzaje działalności gospodarczej (w mln PLN)"]
["Dane z wyłączeniem podmiotów specjalnego przeznaczenia"]
["Polish direct investment abroad - positions at the end of 2020 broken down by economic activity (in PLN million)"]
["Data excluding resident Special Purpose Entities"]
["Opis","Kod DSD /\nDSD code","Description","Akcje i inne formy udziałow kapitałowych /\nEquity ","Instrumenty dłużne /\nDebt instruments","Ogółem / \nTotal FDI Positions"]
[null,null,null,"netto /\nnet","netto /\nnet","netto /\nnet\n(6=4+5)"]
["1","2","3","4",5,6]
["Ogółem","FDI_T","Total",87072.2,18674.900000000001,105747.1]
["(w tym)","","including:","","",""]
["Rolnictwo, leśnictwo i rybactwo","A","Agriculture, forestry and fishing",95.8,5.0999999999999996,100.9]
["Górnictwo i wydobywanie","B","Mining and quarrying",4012.7,7339.3,11352.1]
["Przetwórstwo przemysłowe","C","Manufacturing",18986.900000000001,1628.9,20615.8]
["Wytwarzanie i zaopatrywanie w energię elektryczną, gaz, parę wodną i powietrze do układów klimatyzacyjnych","D35","Electricity,Gas, Steam and Air Conditioning Supply",1163,-831.2,331.8]
["Dostawa wody; gospodarowanie ściekami i odpadami oraz działalność związana z rekultywacją","E","Water Supply; Sewerage, Waste Management and Remediation Activities",52.8,134.4,187.2]
["Budownictwo","F","Construction",656.7,-695.8,-39.1]
["Usługi (łącznie)","GTU","Total Services",60814.3,10602.5,71416.899999999994]
["(w tym)","","including:","","",""]
["Handel hurtowy i detaliczny; naprawa pojazdów samochodowych i motocykli","G","Wholesale and Retail Trade; Repair of Motor Vehicleas and Motorcycles",9716.6,4338.6000000000004,14055.1]
["Transport i gospodarka magazynowa","H","Transportation and Storage",2284.6,545.79999999999995,2830.4]
["Działalność związana z zakwaterowaniem i usługami gastronomicznym","I","Accomodation and Food Service Activities",2137.1999999999998,-24.5,2112.8000000000002]
["Informacja i komunikacja","J","Information and Communication",3655.4,266,3921.4]
["Działalność finansowa i ubezpieczeniowa","K","Financial and Insurance Activities",19281.099999999999,7364.7,26645.8]
["Działalność związana z obsługą rynku nieruchomości","L","Real Estate Activities",2874.1,728.6,3602.7]
["Działalność profesjonalna, naukowa i techniczna","M","Professional, Scientific and Technical Activities",15576.2,1996.3,17572.599999999999]
["Działalność w zakresie usług administrowania i działalność wspierająca","N","Administrative and Support Service Activities",3674,-4664.3,-990.4]
["Opieka zdrowotna i pomoc społeczna","Q","Human Health and Social Work Activities",148.19999999999999,-126.9,21.4]
["Z uwagi na występujące zaokrąglenia suma wartości składowych może różnić się od wartości agregatu."]
["Totals may not equal the sum of components due to rounding"]
[]
["Ostatnia aktualizacja - wrzesień 2021"]
["Last updated: September 2021"]

{"sheet":"Tab.37.PIB_Dochody_Income","index":37,"n_rows":33,"n_cols":5,"rows_kept":33,"cut":false,"hidden":false,"merged":[[4,0,5,0]]}
["Dochody z tytułu polskich inwestycji bezpośrednich za granicą w latach 2000−2020 (w mln PLN)"]
["Dane z wyłączeniem podmiotów specjalnego przeznaczenia"]
["Income on Polish direct investment abroad in 2000–2020 (in PLN million)"]
["Data excluding resident Special Purpose Entities"]
["Rok /\nYear","Dywidendy /\nDividends","Reinwestowane zyski /\nReinvested earnings","Dochody od wierzytelności (odsetki) /\nIncome on debt (interest)","Ogółem dochody /\nTotal Direct Investment income"]
[null,"netto / \nnet","netto /\nnet","netto /\nnet","netto /\nnet\n(5=2+3+4)"]
["1","2","3","4","5"]
[2000,76,-52,-157.94805757173273,-133.94805757173273]
[2001,74,37,-228.32418754783671,-117.32418754783671]
[2002,70,-297,-187.21606328196611,-414.21606328196611]
[2003,57,-44,-165.68522395732231,-152.68522395732231]
[2004,131,83,-183.54992858092271,30.45007141907729]
[2005,139,180,-182.71112423185292,136.28887576814708]
[2006,188,1804,-233.50666153979242,1758.4933384602075]
[2007,404,-228,-290.74203450527386,-114.74203450527386]
[2008,1426,576,-339.81127490456942,1662.1887250954305]
[2009,1056,-4305,-313.76823029389163,-3562.7682302938915]
[2010,1074,921,-402.17526247841079,1592.8247375215892]
[2011,-1218.8000000000002,636.20000000000005,-191.2,-773.80000000000018]
[2012,474.30000000000018,4215,-359.2,4330.1000000000004]
[2013,1912.9,-671.8,43.3,1284.4000000000001]
[2014,3329.5,1609.6,97.5,5036.6000000000004]
[2015,2653,21.8,397.1,3071.9]
[2016,2834.6,583,544,3961.6]
[2017,4239.8999999999996,3113.3,1289.8,8643]
[2018,2507.5,4777.2,595.5,7880.3]
[2019,2656.1,5589.2,632.4,8877.7999999999993]
[2020,2567.1999999999998,2170.5,900.8,5638.4]
["Z uwagi na występujące zaokrąglenia suma wartości składowych może różnić się od wartości agregatu."]
["Totals may not equal the sum of components due to rounding"]
[]
["Ostatnia aktualizacja - wrzesień 2021"]
["Last updated: September 2021"]

{"sheet":"Tab.38.PIB_Dochody_Income_geo","index":38,"n_rows":48,"n_cols":7,"rows_kept":48,"cut":false,"hidden":false,"merged":[[4,0,5,0],[4,1,5,1],[4,2,5,2]]}
["Dochody z tytułu polskich inwestycji bezpośrednich za granicą w 2020 roku w podziale geograficznym (w mln PLN)"]
["Dane z wyłączeniem podmiotów specjalnego przeznaczenia"]
["Income on Polish direct investment abroad in 2020 broken down by geography (in PLN million)"]
["Data excluding resident Special Purpose Entities"]
["Opis","Kod DSD /\nDSD code","Description","Dywidendy /\nDividends","Reinwestowane zyski /\nReinvested earnings","Dochody od wierzytelności (odsetki) /\nIncome on debt (interest)","Ogółem dochody /\nTotal Direct Investment income"]
[null,null,null,"netto /\nnet","netto /\nnet","netto /\nnet","netto /\nnet\n(7=4+5+6)"]
["1","2","3","4","5",6,7]
["Wszystkie kraje","W0","Total World",2567.1999999999998,2170.5,900.8,5638.4]
["(w tym kraje)","","including:","","","",""]
["Cypr","CY","Cyprus",26.7,1163.4000000000001,40.6,1230.7]
["Luksemburg","LU","Luxembourg",380.7,-23.3,631.20000000000005,988.6]
["Republika Czeska","CZ","Czech Republic",390.3,312.7,-12,691]
["Tajlandia","TH","Thailand",":",643.4,0.7,644.1]
["Słowacja","SK","Slovakia",113.7,425.1,2.5,541.29999999999995]
["Niemcy","DE","Germany",328,94.9,35.1,458]
["Ukraina","UA","Ukraine",101.2,292.5,20.5,414.2]
["Rumunia","RO","Romania",56.2,307.3,18.2,381.8]
["Szwajcaria","CH","Switzerland",0.1,268.8,-22.6,246.4]
["Malta","MT","Malta",":",223.5,3.1,226.5]
["Kanada","CA","Canada",0.2,5.5,210.3,216]
["Zjednoczone Emiraty Arabskie","AE","United Arab Emirates",":",207.6,0.4,208]
["India","IN","India",":",132.9,5.8,138.69999999999999]
["Chile","CL","Chile",":",-2.9,132.5,129.69999999999999]
["Stany Zjednoczone Ameryki Północnej","US","United States",60.1,45.1,1,106.2]
["Federacja Rosyjska","RU","Russian Federation",31.1,52.5,8.3000000000000007,91.9]
["Węgry","HU","Hungary",811.1,-911.7,4.0999999999999996,-96.5]
["Meksyk","MX","Mexico",":",-103.9,0.9,-102.9]
["Francja","FR","France",1,-49.5,-75,-123.4]
["Szwecja","SE","Sweden",30.6,83.7,-244.8,-130.5]
["Litwa","LT","Lithuania",73,-551.29999999999995,1.4,-477]
["Norwegia","NO","Norway",":",-546.6,67.3,-479.3]
["(w tym strefy ekonomiczne)","","including economic areas:","","","",""]
["Unia Europejska (27 krajów)","B6","EU27",2311.5,1095.7,381.4,3788.5]
["Strefa Euro (19 krajów)","I8","EA-19",1003.4,1282.5999999999999,634,2920]
["Europejska Strefa Wolnego Handlu (EFTA)","R2","EFTA",0.1,-277.7,44.6,-233]
["Organizacja Współpracy Gospodarczej i Rozwoju (OECD)","P6","OECD",2314.3000000000002,-906.3,740.7,2148.6999999999998]
["Północnoamerykańska Strefa Wolnego Handlu (NAFTA)","R3","NAFTA",60.3,-53.3,212.2,219.3]
["CIS","R14","CIS countries",149.30000000000001,375.7,35.4,560.4]
["ASEAN","R4","ASEAN countries",":",644.79999999999995,1.6,646.4]
["OPEC","R5","OPEC countries",":",209.3,2.2000000000000002,211.5]
["Ameryka Łacińska","A8","Latin America",":",-98.9,155.9,57]
["Kraje Afrykańskie, Karaibskie i Pacyfiku (ACP)","R6","ACP countries",":",23.4,17.600000000000001,41]
["Poza Unią Europejską","D6","Extra EU27",255.7,1074.8,519.4,1849.9]
["Z uwagi na występujące zaokrąglenia suma wartości składowych może różnić się od wartości agregatu."]
["Totals may not equal the sum of components due to rounding"]
[]
["Ostatnia aktualizacja - wrzesień 2021"]
["Last updated: September 2021"]

{"sheet":"Tab.39.PIB_Dochody_Income_act","index":39,"n_rows":31,"n_cols":7,"rows_kept":31,"cut":false,"hidden":false,"merged":[[4,0,5,0],[4,1,5,1],[4,2,5,2]]}
["Dochody z tytułu polskich inwestycji bezpośrednich za granicą w 2020 roku w podziale na rodzaje działalności gospodarczej (w mln PLN)"]
["Dane z wyłączeniem podmiotów specjalnego przeznaczenia"]
["Income on Polish direct investment abroad in 2020 broken down by economic activity (in PLN million)"]
["Data excluding resident Special Purpose Entities"]
["Opis","Kod DSD /\nDSD code","Description","Dywidendy / \nDividends","Reinwestowane zyski /\nReinvested earnings","Dochody od wierzytelności (odsetki) / \nIncome on debt (interest)","Ogółem dochody / \nTotal Direct Investment income"]
[null,null,null,"netto /\nnet","netto /\nnet","netto /\nnet","netto /\nnet\n(7=4+5+6)"]
["1","2","3","4","5",6,7]
["Ogółem","FDI_T","Total",2567.1999999999998,2170.5,900.8,5638.4]
["(w tym)","","including:","","","",""]
["Rolnictwo, leśnictwo i rybactwo","A","Agriculture, forestry and fishing",0.2,10.8,-0.5,10.5]
["Górnictwo i wydobywanie","B","Mining and quarrying",":",-641,436.5,-204.4]
["Przetwórstwo przemysłowe","C","Manufacturing",513.6,774.5,-84.6,1203.5]
["Wytwarzanie i zaopatrywanie w energię elektryczną, gaz, parę wodną i powietrze do układów klimatyzacyjnych","D35","Electricity,Gas, Steam and Air Conditioning Supply",2.7,129.9,-20.7,111.9]
["Dostawa wody; gospodarowanie ściekami i odpadami oraz działalność związana z rekultywacją","E","Water Supply; Sewerage, Waste Management and Remediation Activities",":",16.8,3.3,20.100000000000001]
["Budownictwo","F","Construction",24.5,35.299999999999997,-14.2,45.6]
["Usługi (łącznie)","GTU","Total Services",1989.2,1792.8,583.20000000000005,4365.2]
["(w tym)","","including:","","","",""]
["Handel hurtowy i detaliczny; naprawa pojazdów samochodowych i motocykli","G","Wholesale and Retail Trade; Repair of Motor Vehicleas and Motorcycles",990.5,464.9,46.1,1501.5]
["Transport i gospodarka magazynowa","H","Transportation and Storage",5.3,25.2,17.8,48.3]
["Działalność związana z zakwaterowaniem i usługami gastronomicznym","I","Accomodation and Food Service Activities",":",-303.39999999999998,-2.7,-306.2]
["Informacja i komunikacja","J","Information and Communication",173,431.2,-9,595.20000000000005]
["Działalność finansowa i ubezpieczeniowa","K","Financial and Insurance Activities",204.3,615.1,523.79999999999995,1343.2]
["Działalność związana z obsługą rynku nieruchomości","L","Real Estate Activities",213.2,-541.5,26,-302.3]
["Działalność profesjonalna, naukowa i techniczna","M","Professional, Scientific and Technical Activities",359.5,734,16.3,1109.7]
["Działalność w zakresie usług administrowania i działalność wspierająca","N","Administrative and Support Service Activities",43.5,199.4,-28.2,214.7]
["Opieka zdrowotna i pomoc społeczna","Q","Human Health and Social Work Activities",":",0.5,-4.0999999999999996,-3.6]
["Z uwagi na występujące zaokrąglenia suma wartości składowych może różnić się od wartości agregatu."]
["Totals may not equal the sum of components due to rounding"]
[]
["Ostatnia aktualizacja - wrzesień 2021"]
["Last updated: September 2021"]

{"sheet":"Tab.40.Stany_Position_AL_EDP","index":40,"n_rows":44,"n_cols":18,"rows_kept":44,"cut":false,"hidden":false,"merged":[[6,0,10,0],[6,1,6,2],[6,4,6,17],[7,1,7,17],[8,1,10,1],[8,2,10,2],[8,3,10,3],[8,4,8,10],[8,11,8,17],[9,4,10,4],[9,5,9,7],[9,8,9,10],[9,11,10,11],[9,12,9,14],[9,15,9,17]]}
["Stan zobowiązań Polski z tytułu inwestycji bezpośrednich na koniec roku w latach 2011-2020 (w mln PLN)"]
["Dane z wyłączeniem podmiotów specjalnego przeznaczenia"]
["Dane według zasady aktywa / pasywa oraz zgodnie z zasadą kierunkowości"]
["Foreign direct investment in Poland -  position at the end of 2011-2020 (in PLN million)"]
["Data excluding resident Special Purpose Entities"]
["Data according to the asset / liability principle and directional principal"]
["Rok / \nYear ","Prezentacja wg. zasady aktywa / pasywa /\nPresentation according to the asset / liability principle",null,null,"Prezentacja zgodnie z zasadą kierunkowości / \nPresentation according to the directional principle"]
[null,"Inwestycje bezpośrednie /\nDirect investment"]
[null,"Aktywa /\nAssets","Pasywa /\nLiabilities","Netto / \nNet","Polskie inwestycje bezpośrednie za granicą /\nPolish direct investment abroad (outward position) ",null,null,null,null,null,null,"Zagraniczne inwestycje bezpośrednie w Polsce / \nForeign direct investment in Poland (inward position) "]
[null,null,null,null,"Ogółem / Total","Akcje i inne formy udziałów kapitałowych /\nEquity capital",null,null,"Instrumenty dłużne / \nDebt instruments",null,null,"Ogółem / Total","Akcje i inne formy udziałów kapitałowych/\nEquity capital",null,null,"Instrumenty dłużne / \nDebt instruments"]
[null,null,null,null,null,"Aktywa /\nAssets","Pasywa /\nLiabilities","Netto ogółem /\nNet total","Aktywa / \nAssets","Pasywa / \nLiabilities","Netto ogółem / \nNet total",null,"Pasywa / \nLiabilities","Aktywa / \nAssets","Netto ogółem / \nNet total","Pasywa / \nLiabilities","Aktywa / \nAssets","Netto ogółem / Net total"]
[1,"2 = 6 + 9 + 14 + 17 ","3 = 13 + 16 + 7 + 10","4 = 2 - 3 /                          4 = 5 - 12","5 = 8 + 11",6,7,"8 = 6 - 7",9,10,"11 = 9 - 10","12 =  15 + 18",13,14,"15 = 13 - 14",16,17,"18 = 16 - 17"]
[2011,220450.7,717947.6,-497496.89999999997,92747.300000000017,95694.3,534.9,95159.400000000009,38922.6,41334.699999999997,-2412.0999999999985,590244.19999999995,467777.3,6657.5,461119.8,208300.7,79176.3,129124.40000000001]
[2012,212012,753324.1,-541312.1,97510.5,88979.199999999997,304.60000000000002,88674.599999999991,39717.9,30882,8835.9000000000015,638822.60000000009,509267.4,6060.6,503206.80000000005,212870.1,77254.3,135615.79999999999]
[2013,207053.59999999998,813511.8,-606458.20000000007,92341.3,93769,444.3,93324.7,38536.300000000003,39519.699999999997,-983.39999999999418,698799.5,555087.6,6261.6,548826,218460.2,68486.7,149973.5]
[2014,222816.59999999998,867184.7,-644368.1,97348.4,96485.4,-4991.5,101476.9,40991.9,45120.4,-4128.5,741716.5,572549.5,3432.9,569116.6,254506.3,81906.399999999994,172599.9]
[2015,241200.6,859502.4,-618301.80000000005,107249.60000000001,109004.4,380.1,108624.3,43018.1,44392.800000000003,-1374.7,725551.5,546719,3422.5,543296.5,268010.59999999998,85755.6,182255]
[2016,265401,937681.1,-672280.1,116494.2,104985.5,447.2,104538.3,56292.2,44336.4,11955.8,788774.3,585143,2539.1999999999998,582603.69999999995,307754.59999999998,101584.1,206170.5]
[2017,252141.5,987363.6,-735222.1,101620.3,95867.9,2989.6,92878.2,50135.8,41393.699999999997,8742,836842.4,642388.9,3373.2,639015.69999999995,300591.3,102764.6,197826.7]
[2018,248836.8,1019232.9,-770396.10000000009,92557.3,84809.9,1556.7,83253.2,52670.2,43366.1,9304.1,862953.4,653661,3801,649860,320649.09999999998,107555.7,213093.4]
[2019,268010,1079377.0999999999,-811367.09999999986,102307.9,84485.4,393.5,84091.9,52306.400000000001,34090.400000000001,18216,913675.1,709367.6,5361.3,704006.3,335525.7,125856.9,209668.8]
[2020,292580.2,1125393.6000000001,-832813.40000000014,105747.1,87416.8,344.6,87072.2,56045.9,37371,18674.900000000001,938560.5,727907.5,5657.3,722250.2,359770.4,143460.20000000001,216310.2]
["Z uwagi na występujące zaokrąglenia suma wartości składowych może różnić się od wartości agregatu"]
["Totals may not equal the sum of components due to rounding"]
[]
[2,"Suma czterech następujących komponentów: akcji i innych form udziałów kapiałowych z tytułu polskich inwestycji bezpośrednich za granicą (aktywa) + instrumentów dłużnch z tytułu polskich inwestycji bezpośrednich za granicą (aktywa) + akcji i innych form udziałów kapitałowych z tytułu zagranicznych inwestycji bezpośrednich w Polsce  (aktywa) + instrumentów dłużnychz tytułu zagranicznych inwestycji bezpośrednich w Polsce (aktywa) / "]
[null,"Sum of the following four components: equity assets of polish direct investment abroad (outward) + debt instruments assets of polish direct investment abroad (outward) + equity assets of foreign direct investment in Poland (inward) + debt instruments assets of foreign direct investment in Poland (inward)"]
[]
[3,"Suma czterech następujących komponentów: akcji i innych formy udziałów kapitałowych z tytułu zagranicznych inwestycje bezpośrednie w Polsce (pasywa) + instrumentów dłużnych z tytułu zagranicznych inwestycji bezpośrednich w Polsce (pasywa) + akcji i innych formy udziałów kapitałowych z tytułu polskich inwestycji bezpośrednich za granicą (pasywa) + instrumentów dłużnych z tytułu polskie inwestycje bezpośrednie za granicą (pasywa) / "]
[null,"Sum of the following four components: equity liabilities of foreign direct investment in Poland (inward) + debt instruments liabilities of foreign direct investment in Poland (inward) + equity liabilities of polish direct investment abroad (outward) + debt instruments liabilities of polish direct investment abroad (outward)"]
[]
[4,"Inwestycje bezpośrednie netto (aktywa minus pasywa) / Direct investment net (assets minus liabilities)"]
[5,"Polskie inwestycje bezpośrednie za granicą (ogółem) - suma dwóch komponentow: akcji i innych formy udziałów kapitałowych netto ogółem + instrumentów dłużnych netto ogółem  "]
[null,"Polish direct investment abroad (outward) total - sum of two components:  equity net + debt instruments net "]
[8,"Akcje i inne formy udziałów kapitałowych z tytułu polskich inwestycji bezpośrednich za granicą netto ogółem (aktywa - pasywa) / Equity net of Polish direct investment abroad (outward) - (assets - liabilities)"]
[11,"Instrumenty dłużne z tytułu polskich inwestycji bezpośrednich za granicą netto ogółem (aktywa - pasywa) / Debt instrumants net of Polish direct investment abroad (outward) - (assets - liabilities)"]
[12,"Zagraniczne inwestycji bezpośrednie w Polsce (ogółem) - suma dwóch komponentów: akcji i innych formy udziałów kapitałowych netto ogółem + instrumentów dłużnych netto ogółem"]
[null,"Foreign direct investment in Poland (inward) total - sum of two components: equity net + debt instruments net "]
[15,"Akcje i inne formy udziałów kapitałowych z tytułu zagranicznych inwestyucji bezpośrednich w Polsce netto ogółem (pasywa - aktywa) / Equity net of foreign direct investment in Poland (inward) -  (liabilities - assets)"]
[18,"Dłużne instrumenty finansowe z tytułu zagranicznych inwestycji  bezpośrednich netto ogółem (pasywa - aktywa) / Financial debt instruments net of foreign direct investment in Poland (inward) - (liabilities - assets) "]
[]
[]
["Ostatnia aktualizacja - wrzesień 2021"]
["Last updated: September 2021"]